{"text_format":"1","workbook":"xlsx","n_sheets":9,"sheets":["INTRO","COUNTRY_INFO","ALB_MBD","PZQ","IVM","SUMMARY","SHIPMENT","DATA_POLICY - ES","DATA_POLICY"],"not_rendered":{"charts":0,"images":4,"macros":1,"external_links":1,"defined_names":6,"comments":7,"pivot_tables":0},"unopened":[],"bounds":{"document_bytes":16777216,"sheet_cells":100000,"rows_first":2000,"rows_last":500,"rows_between":2000,"halvings":0,"cell_chars":16384,"cell_head_chars":4096},"cells_cut":0,"cells_raw":0,"read":"whole","date_system":"1900"}

{"sheet":"INTRO","index":0,"n_rows":50,"n_cols":5,"rows_kept":50,"cut":false,"hidden":false,"merged":[[21,1,21,4],[7,2,7,4],[11,1,11,4],[4,1,4,4],[10,2,10,4],[20,2,20,4],[17,1,17,4],[13,1,13,4],[18,2,18,4],[8,2,8,4],[2,1,2,4],[1,1,1,4],[5,1,5,4],[3,1,3,4],[0,2,0,4],[24,1,24,4],[9,2,9,4],[46,1,46,4],[38,1,38,2],[40,1,40,2],[42,1,42,2],[44,1,44,2],[34,1,34,2],[36,1,36,2],[22,2,23,4],[25,2,26,4],[19,1,19,4],[12,1,12,4],[16,1,16,4],[14,1,14,4],[15,1,15,4],[27,1,27,4],[32,1,32,2],[29,1,29,4],[30,1,30,4],[28,2,28,4]]}
[null,null,"Cette version sera utilisée par les pays endémiques à la Loase"]
[null,"Formulaire de demande commune de médicaments pour CP v.3.1 (L)"]
[]
[null,"Dans le cadre des efforts mondiaux entrepris pour accélérer l'expansion de la chimioprévention (CP) pour l'élimination de la filariose lymphatique et la lutte contre la schistosomiase et les géohelminthiases, l'Organisation mondiale de la Santé (OMS) facilite l'approvisionnement en albendazole, comprimés de 400 mg (GSK), pour les programmes nationaux d'élimination de la filariose lymphatique et programmes nationaux de lutte contre les géohelminthiases; en diethylcarbamazine, comprimés de 100 mg (Eisai), pour les programmes nationaux d'élimination de la filariose lymphatique; en mebendazole, comprimés de 500 mg (J&J) pour les programmes nationaux de lutte contre les géohelminthiases et en praziquantel, comprimés de 600 mg (Merck KGaA), destinés aux enfants d'âge scolaire, pour les programmes nationaux de lutte contre la schistosomiase. L'OMS contribue également à l'approvisionnement en ivermectine, comprimés de 3 mg (Merck), pour les programmes de donation pour l'onchocercose et la filariose lymphatique. \nCet outil Excel est concu pour aider les pays à quantifier le nombre de comprimés nécessaires, selon le traitement de chimioprévention requis, pour atteindre les objectifs de couverture de traitement de populations et districts pour l'année de la demande de médicaments. Le résultat de cet outil est une demande commune de médicaments pour la chimioprévention des maladies tropicales négligées, qui peut être imprimée, signée et soumise à l'OMS pour la demande de ces médicaments. "]
[]
[null,"Structure de l'application (feuilles de travail) :"]
[]
[null,"INTRO","Cette feuille contient des instructions pour compléter le formulaire de demande de médicaments pour la chimioprévention et des informations sur le statut de la chimioprévention pour les maladies d'endémie du pays."]
[null,"COUNTRY_INFO","Cette feuille contient des informations sur la structure administrative du pays, la population par groupe d'âge, le statut d'endémicité pour chaque maladie, la population devant être traitée par chimioprévention et les interventions prévues."]
[null,"DEC, ALB_MBD, PZQ et IVM","Ces feuilles contiennent des informations sur l'endémicité des districts ciblés pour le traitement aux médicaments spécifiques à la chimioprévention, les plans de traitement, et le nombre de comprimés requis et demandés."]
[null,"SUMMARY","Cette feuille inclut un résumé du nombre de comprimés demandés, des informations concernant le stock et les dates de soumission de la demande de médicaments. Avant de générer le rapport (run macros), veuillez sélectionner le médicament pour lequel le rapport est nécessaire. Veuillez suivre la même règle pour voir le nombre de personnes à traiter pour les maladies spécifiques. \nCette feuille doit être imprimée et soumise en tant que \"Formulaire de demande commune de médicaments pour chimioprévention\" (voir les instructions pour la soumission du formulaire sous la feuille SUMMARY)."]
[]
[null,"Instructions pour la saisie des données"]
[]
[null,"La plupart des cellules des feuilles de travail mentionnées ci-dessus contiennent des formules calculées automatiquement en fonction du protocole de traitement recommandé par l'OMS pour chaque maladie.\nVoir : http://www.who.int/neglected_diseases/preventive_chemotherapy/pct_manual/en/index.html"]
[]
[null,"Veuillez entrer vos données dans les cellules en fonction de leur code de couleur :"]
[]
[null,null,"Blanc - la cellule n'est pas protégée. Veuillez entrer la valeur de l'indicateur demandé."]
[]
[null,null,"Jaune - la cellule est protégée et inclut le nom de l'indicateur. Aucune entrée de données requise."]
[]
[null,null,"Orange - la cellule n'est pas protégée et contient un menu déroulant. Veuillez sélectionner la valeur dans le menu déroulant. "]
[]
[]
[null,null,"Vert - la cellule n'est pas protégée et contient des formules. Veuillez changer la valeur indiquée uniquement si vos données sont différentes de celles calculées automatiquement.  "]
[]
[]
[null,null,"Bleu - la cellule est protégée et contient des formules. Aucune entrée de données requise. "]
[]
[null,"Données pays"]
[]
[null,"PAYS",null,null,"GUINEE EQUATORIALE"]
[]
[null,"Année de la demande de médicaments",null,null,2020]
[]
[null,"Le pays est-il endémique à la filariose lymphatique (FL) ?",null,null,"Endémique"]
[]
[null,"Le pays est-il endémique à l'onchocercose (ONCHO) ? ",null,null,"Endémique"]
[]
[null,"Le pays est-il endémique aux géohelminthiases (STH) ?",null,null,"Endémique"]
[]
[null,"Le pays est-il endémique à la schistosomiase (SCH) ?",null,null,"Endémique"]
[]
[null,"Combien d'unités administratives compte le pays ?",null,null,18]
[]
[null,"Si les données démographiques par groupe d'âge ne sont pas disponibles au second niveau administratif, veuillez entrer la proportion (%) de population, par groupe d'âge, du pays. Si les données sont disponibles, veuillez laisser les cellules vierges."]
[null,"1-4 ans","Enfants d'âge pré-scolaire (EAPréS)",null,0.1076]
[null,"5-14 ans","Enfants d'âge scolaire (EAS)",null,0.22422619234993685]
[null,"15 ans et plus","Adultes",null,0.62575198508749019]

{"sheet":"COUNTRY_INFO","index":1,"n_rows":26,"n_cols":26,"rows_kept":26,"cut":false,"hidden":false,"merged":[[5,0,5,2],[3,20,3,23],[5,20,5,23],[7,0,7,19],[5,3,5,6],[5,7,5,11],[5,12,5,15],[5,16,5,19],[3,0,3,2],[3,7,3,11],[3,16,3,19]]}
["INFORMATIONS PAYS"]
["Struture administrative, population par groupe d'âge, statut d'endémicité et interventions planifiées",null,null,null,null,null,null,null,null,null,null,null,null,null,null,null,null,null,null,null,null,1.0424]
[]
["TOTAL",null,null,{"$f":"SUM(D$9:D$1000)","v":1168631},{"$f":"SUM(E$9:E$1000)","v":125745},{"$f":"SUM(F$9:F$1000)","v":262038},{"$f":"SUM(G$9:G$1000)","v":731272},null,null,null,null,null,{"$f":"SUM(M$9:M$1000)","v":948512},{"$f":"SUM(N$9:N$1000)","v":0},{"$f":"SUM(O$9:O$1000)","v":387783},{"$f":"SUM(P$9:P$1000)","v":137140.80000000002}]
[]
["Structure administrative du pays",null,null,"Population",null,null,null,"Endémicité",null,null,null,null,"Population nécessitant la CP",null,null,null,"Nombre de tournées de traitement prévues pour l'année",null,null,null,"Enquêtes épidémiologiques planifiées pour l’année"]
["Pays","Région/Département","District","Total","EAPréS","EAS","Adultes","FL","Oncho","STH","SCH","Loa","FL","Oncho","STH","SCH","FL","Oncho","STH","SCH","FL","Oncho","STH","SCH","IU_ID","IU_NAME"]
[]
[{"$f":"IF(INTRO!$E$33<>0,INTRO!$E$33, \" \")","v":"GUINEE EQUATORIALE"},"Annobon","Annonbon",8115,{"$f":"IF(INTRO!$E$48=\"\",\"\",ROUND($D9*INTRO!$E$48,0))","v":873},{"$f":"IF(INTRO!$E$49=\"\",\"\",ROUND($D9*INTRO!$E$49,0))","v":1820},{"$f":"IF(INTRO!$E$50=\"\",\"\",ROUND($D9*INTRO!$E$50,0))","v":5078},0,4,3,0,0,{"$f":"IF(INTRO!$E$37=\"Endémique\",IF($H9>0,IF($H9=4,\"Inconnu\",IF($H9=99,\"Interrompu\",$D9)),0),\"Non requis\")","v":0},{"$f":"IF(INTRO!$E$39=\"Endémique\", IF($I9>0, IF($I9=4,\"Inconnu\",IF($I9=99,\"Interrompu\",$D9)), 0),\"Non requis\")","v":"Inconnu"},{"$f":"IF(INTRO!$E$41=\"Endémique\", IF(AND($J9>1,$J9<5), IF($J9=4, \"Inconnu\", E9+F9), 0),\"Non requis\")","v":2693},{"$f":"IF(INTRO!$E$43=\"Endémique\", IF(AND($K9>0,$K9<5), IF($K9=4,\"Inconnu\", IF($K9=1, $F9*0.33, IF($K9=2, $F9*0.5+$G9*0.2, SUM(F9:G9)))), 0),\"Non requis\")","v":0},0,0,2,0,null,null,null,null,16411,"Annonbon"]
[{"$f":"IF(INTRO!$E$33<>0,INTRO!$E$33, \" \")","v":"GUINEE EQUATORIALE"},"Bioko Norte","Baney",30782,{"$f":"IF(INTRO!$E$48=\"\",\"\",ROUND($D10*INTRO!$E$48,0))","v":3312},{"$f":"IF(INTRO!$E$49=\"\",\"\",ROUND($D10*INTRO!$E$49,0))","v":6902},{"$f":"IF(INTRO!$E$50=\"\",\"\",ROUND($D10*INTRO!$E$50,0))","v":19262},1,99,3,1,1,{"$f":"IF(INTRO!$E$37=\"Endémique\",IF($H10>0,IF($H10=4,\"Inconnu\",IF($H10=99,\"Interrompu\",$D10)),0),\"Non requis\")","v":30782},{"$f":"IF(INTRO!$E$39=\"Endémique\", IF($I10>0, IF($I10=4,\"Inconnu\",IF($I10=99,\"Interrompu\",$D10)), 0),\"Non requis\")","v":"Interrompu"},{"$f":"IF(INTRO!$E$41=\"Endémique\", IF(AND($J10>1,$J10<5), IF($J10=4, \"Inconnu\", E10+F10), 0),\"Non requis\")","v":10214},{"$f":"IF(INTRO!$E$43=\"Endémique\", IF(AND($K10>0,$K10<5), IF($K10=4,\"Inconnu\", IF($K10=1, $F10*0.33, IF($K10=2, $F10*0.5+$G10*0.2, SUM(F10:G10)))), 0),\"Non requis\")","v":2277.6600000000003},1,0,2,0,null,null,null,null,16412,"Baney"]
[{"$f":"IF(INTRO!$E$33<>0,INTRO!$E$33, \" \")","v":"GUINEE EQUATORIALE"},"Bioko Norte","Malabo",185413,{"$f":"IF(INTRO!$E$48=\"\",\"\",ROUND($D11*INTRO!$E$48,0))","v":19950},{"$f":"IF(INTRO!$E$49=\"\",\"\",ROUND($D11*INTRO!$E$49,0))","v":41574},{"$f":"IF(INTRO!$E$50=\"\",\"\",ROUND($D11*INTRO!$E$50,0))","v":116023},0,99,3,2,1,{"$f":"IF(INTRO!$E$37=\"Endémique\",IF($H11>0,IF($H11=4,\"Inconnu\",IF($H11=99,\"Interrompu\",$D11)),0),\"Non requis\")","v":0},{"$f":"IF(INTRO!$E$39=\"Endémique\", IF($I11>0, IF($I11=4,\"Inconnu\",IF($I11=99,\"Interrompu\",$D11)), 0),\"Non requis\")","v":"Interrompu"},{"$f":"IF(INTRO!$E$41=\"Endémique\", IF(AND($J11>1,$J11<5), IF($J11=4, \"Inconnu\", E11+F11), 0),\"Non requis\")","v":61524},{"$f":"IF(INTRO!$E$43=\"Endémique\", IF(AND($K11>0,$K11<5), IF($K11=4,\"Inconnu\", IF($K11=1, $F11*0.33, IF($K11=2, $F11*0.5+$G11*0.2, SUM(F11:G11)))), 0),\"Non requis\")","v":43991.600000000006},0,0,2,0,null,null,null,null,16413,"Malabo"]
[{"$f":"IF(INTRO!$E$33<>0,INTRO!$E$33, \" \")","v":"GUINEE EQUATORIALE"},"Bioko Sur","Luba",26591,{"$f":"IF(INTRO!$E$48=\"\",\"\",ROUND($D12*INTRO!$E$48,0))","v":2861},{"$f":"IF(INTRO!$E$49=\"\",\"\",ROUND($D12*INTRO!$E$49,0))","v":5962},{"$f":"IF(INTRO!$E$50=\"\",\"\",ROUND($D12*INTRO!$E$50,0))","v":16639},0,99,2,0,1,{"$f":"IF(INTRO!$E$37=\"Endémique\",IF($H12>0,IF($H12=4,\"Inconnu\",IF($H12=99,\"Interrompu\",$D12)),0),\"Non requis\")","v":0},{"$f":"IF(INTRO!$E$39=\"Endémique\", IF($I12>0, IF($I12=4,\"Inconnu\",IF($I12=99,\"Interrompu\",$D12)), 0),\"Non requis\")","v":"Interrompu"},{"$f":"IF(INTRO!$E$41=\"Endémique\", IF(AND($J12>1,$J12<5), IF($J12=4, \"Inconnu\", E12+F12), 0),\"Non requis\")","v":8823},{"$f":"IF(INTRO!$E$43=\"Endémique\", IF(AND($K12>0,$K12<5), IF($K12=4,\"Inconnu\", IF($K12=1, $F12*0.33, IF($K12=2, $F12*0.5+$G12*0.2, SUM(F12:G12)))), 0),\"Non requis\")","v":0},0,0,1,0,null,null,null,null,16414,"Luba"]
[{"$f":"IF(INTRO!$E$33<>0,INTRO!$E$33, \" \")","v":"GUINEE EQUATORIALE"},"Bioko Sur","Riaba",9573,{"$f":"IF(INTRO!$E$48=\"\",\"\",ROUND($D13*INTRO!$E$48,0))","v":1030},{"$f":"IF(INTRO!$E$49=\"\",\"\",ROUND($D13*INTRO!$E$49,0))","v":2147},{"$f":"IF(INTRO!$E$50=\"\",\"\",ROUND($D13*INTRO!$E$50,0))","v":5990},1,99,3,0,1,{"$f":"IF(INTRO!$E$37=\"Endémique\",IF($H13>0,IF($H13=4,\"Inconnu\",IF($H13=99,\"Interrompu\",$D13)),0),\"Non requis\")","v":9573},{"$f":"IF(INTRO!$E$39=\"Endémique\", IF($I13>0, IF($I13=4,\"Inconnu\",IF($I13=99,\"Interrompu\",$D13)), 0),\"Non requis\")","v":"Interrompu"},{"$f":"IF(INTRO!$E$41=\"Endémique\", IF(AND($J13>1,$J13<5), IF($J13=4, \"Inconnu\", E13+F13), 0),\"Non requis\")","v":3177},{"$f":"IF(INTRO!$E$43=\"Endémique\", IF(AND($K13>0,$K13<5), IF($K13=4,\"Inconnu\", IF($K13=1, $F13*0.33, IF($K13=2, $F13*0.5+$G13*0.2, SUM(F13:G13)))), 0),\"Non requis\")","v":0},1,0,2,0,null,null,null,null,16415,"Riaba"]
[{"$f":"IF(INTRO!$E$33<>0,INTRO!$E$33, \" \")","v":"GUINEE EQUATORIALE"},"Centro Sur","Acurenam",33466,{"$f":"IF(INTRO!$E$48=\"\",\"\",ROUND($D14*INTRO!$E$48,0))","v":3601},{"$f":"IF(INTRO!$E$49=\"\",\"\",ROUND($D14*INTRO!$E$49,0))","v":7504},{"$f":"IF(INTRO!$E$50=\"\",\"\",ROUND($D14*INTRO!$E$50,0))","v":20941},1,0,3,1,1,{"$f":"IF(INTRO!$E$37=\"Endémique\",IF($H14>0,IF($H14=4,\"Inconnu\",IF($H14=99,\"Interrompu\",$D14)),0),\"Non requis\")","v":33466},{"$f":"IF(INTRO!$E$39=\"Endémique\", IF($I14>0, IF($I14=4,\"Inconnu\",IF($I14=99,\"Interrompu\",$D14)), 0),\"Non requis\")","v":0},{"$f":"IF(INTRO!$E$41=\"Endémique\", IF(AND($J14>1,$J14<5), IF($J14=4, \"Inconnu\", E14+F14), 0),\"Non requis\")","v":11105},{"$f":"IF(INTRO!$E$43=\"Endémique\", IF(AND($K14>0,$K14<5), IF($K14=4,\"Inconnu\", IF($K14=1, $F14*0.33, IF($K14=2, $F14*0.5+$G14*0.2, SUM(F14:G14)))), 0),\"Non requis\")","v":2476.3200000000002},1,0,2,0,null,null,null,null,16416,"Acurenam"]
[{"$f":"IF(INTRO!$E$33<>0,INTRO!$E$33, \" \")","v":"GUINEE EQUATORIALE"},"Centro Sur","Evinayong",61441,{"$f":"IF(INTRO!$E$48=\"\",\"\",ROUND($D15*INTRO!$E$48,0))","v":6611},{"$f":"IF(INTRO!$E$49=\"\",\"\",ROUND($D15*INTRO!$E$49,0))","v":13777},{"$f":"IF(INTRO!$E$50=\"\",\"\",ROUND($D15*INTRO!$E$50,0))","v":38447},1,0,3,1,1,{"$f":"IF(INTRO!$E$37=\"Endémique\",IF($H15>0,IF($H15=4,\"Inconnu\",IF($H15=99,\"Interrompu\",$D15)),0),\"Non requis\")","v":61441},{"$f":"IF(INTRO!$E$39=\"Endémique\", IF($I15>0, IF($I15=4,\"Inconnu\",IF($I15=99,\"Interrompu\",$D15)), 0),\"Non requis\")","v":0},{"$f":"IF(INTRO!$E$41=\"Endémique\", IF(AND($J15>1,$J15<5), IF($J15=4, \"Inconnu\", E15+F15), 0),\"Non requis\")","v":20388},{"$f":"IF(INTRO!$E$43=\"Endémique\", IF(AND($K15>0,$K15<5), IF($K15=4,\"Inconnu\", IF($K15=1, $F15*0.33, IF($K15=2, $F15*0.5+$G15*0.2, SUM(F15:G15)))), 0),\"Non requis\")","v":4546.41},1,0,2,0,null,null,null,null,16417,"Evinayong"]
[{"$f":"IF(INTRO!$E$33<>0,INTRO!$E$33, \" \")","v":"GUINEE EQUATORIALE"},"Centro Sur","Niefang",78714,{"$f":"IF(INTRO!$E$48=\"\",\"\",ROUND($D16*INTRO!$E$48,0))","v":8470},{"$f":"IF(INTRO!$E$49=\"\",\"\",ROUND($D16*INTRO!$E$49,0))","v":17650},{"$f":"IF(INTRO!$E$50=\"\",\"\",ROUND($D16*INTRO!$E$50,0))","v":49255},1,0,3,1,1,{"$f":"IF(INTRO!$E$37=\"Endémique\",IF($H16>0,IF($H16=4,\"Inconnu\",IF($H16=99,\"Interrompu\",$D16)),0),\"Non requis\")","v":78714},{"$f":"IF(INTRO!$E$39=\"Endémique\", IF($I16>0, IF($I16=4,\"Inconnu\",IF($I16=99,\"Interrompu\",$D16)), 0),\"Non requis\")","v":0},{"$f":"IF(INTRO!$E$41=\"Endémique\", IF(AND($J16>1,$J16<5), IF($J16=4, \"Inconnu\", E16+F16), 0),\"Non requis\")","v":26120},{"$f":"IF(INTRO!$E$43=\"Endémique\", IF(AND($K16>0,$K16<5), IF($K16=4,\"Inconnu\", IF($K16=1, $F16*0.33, IF($K16=2, $F16*0.5+$G16*0.2, SUM(F16:G16)))), 0),\"Non requis\")","v":5824.5},1,0,2,0,null,null,null,null,16418,"Niefang"]
[{"$f":"IF(INTRO!$E$33<>0,INTRO!$E$33, \" \")","v":"GUINEE EQUATORIALE"},"Kientem","Ebebiyin",131083,{"$f":"IF(INTRO!$E$48=\"\",\"\",ROUND($D17*INTRO!$E$48,0))","v":14105},{"$f":"IF(INTRO!$E$49=\"\",\"\",ROUND($D17*INTRO!$E$49,0))","v":29392},{"$f":"IF(INTRO!$E$50=\"\",\"\",ROUND($D17*INTRO!$E$50,0))","v":82025},1,0,3,1,1,{"$f":"IF(INTRO!$E$37=\"Endémique\",IF($H17>0,IF($H17=4,\"Inconnu\",IF($H17=99,\"Interrompu\",$D17)),0),\"Non requis\")","v":131083},{"$f":"IF(INTRO!$E$39=\"Endémique\", IF($I17>0, IF($I17=4,\"Inconnu\",IF($I17=99,\"Interrompu\",$D17)), 0),\"Non requis\")","v":0},{"$f":"IF(INTRO!$E$41=\"Endémique\", IF(AND($J17>1,$J17<5), IF($J17=4, \"Inconnu\", E17+F17), 0),\"Non requis\")","v":43497},{"$f":"IF(INTRO!$E$43=\"Endémique\", IF(AND($K17>0,$K17<5), IF($K17=4,\"Inconnu\", IF($K17=1, $F17*0.33, IF($K17=2, $F17*0.5+$G17*0.2, SUM(F17:G17)))), 0),\"Non requis\")","v":9699.36},1,0,2,0,null,null,null,null,16419,"Ebebiyin"]
[{"$f":"IF(INTRO!$E$33<>0,INTRO!$E$33, \" \")","v":"GUINEE EQUATORIALE"},"Kientem","Micomiseng",86185,{"$f":"IF(INTRO!$E$48=\"\",\"\",ROUND($D18*INTRO!$E$48,0))","v":9274},{"$f":"IF(INTRO!$E$49=\"\",\"\",ROUND($D18*INTRO!$E$49,0))","v":19325},{"$f":"IF(INTRO!$E$50=\"\",\"\",ROUND($D18*INTRO!$E$50,0))","v":53930},1,0,3,1,1,{"$f":"IF(INTRO!$E$37=\"Endémique\",IF($H18>0,IF($H18=4,\"Inconnu\",IF($H18=99,\"Interrompu\",$D18)),0),\"Non requis\")","v":86185},{"$f":"IF(INTRO!$E$39=\"Endémique\", IF($I18>0, IF($I18=4,\"Inconnu\",IF($I18=99,\"Interrompu\",$D18)), 0),\"Non requis\")","v":0},{"$f":"IF(INTRO!$E$41=\"Endémique\", IF(AND($J18>1,$J18<5), IF($J18=4, \"Inconnu\", E18+F18), 0),\"Non requis\")","v":28599},{"$f":"IF(INTRO!$E$43=\"Endémique\", IF(AND($K18>0,$K18<5), IF($K18=4,\"Inconnu\", IF($K18=1, $F18*0.33, IF($K18=2, $F18*0.5+$G18*0.2, SUM(F18:G18)))), 0),\"Non requis\")","v":6377.25},1,0,2,0,null,null,null,null,16420,"Micomiseng"]
[{"$f":"IF(INTRO!$E$33<>0,INTRO!$E$33, \" \")","v":"GUINEE EQUATORIALE"},"Kientem","Nsoknsomo",49688,{"$f":"IF(INTRO!$E$48=\"\",\"\",ROUND($D19*INTRO!$E$48,0))","v":5346},{"$f":"IF(INTRO!$E$49=\"\",\"\",ROUND($D19*INTRO!$E$49,0))","v":11141},{"$f":"IF(INTRO!$E$50=\"\",\"\",ROUND($D19*INTRO!$E$50,0))","v":31092},1,0,3,1,1,{"$f":"IF(INTRO!$E$37=\"Endémique\",IF($H19>0,IF($H19=4,\"Inconnu\",IF($H19=99,\"Interrompu\",$D19)),0),\"Non requis\")","v":49688},{"$f":"IF(INTRO!$E$39=\"Endémique\", IF($I19>0, IF($I19=4,\"Inconnu\",IF($I19=99,\"Interrompu\",$D19)), 0),\"Non requis\")","v":0},{"$f":"IF(INTRO!$E$41=\"Endémique\", IF(AND($J19>1,$J19<5), IF($J19=4, \"Inconnu\", E19+F19), 0),\"Non requis\")","v":16487},{"$f":"IF(INTRO!$E$43=\"Endémique\", IF(AND($K19>0,$K19<5), IF($K19=4,\"Inconnu\", IF($K19=1, $F19*0.33, IF($K19=2, $F19*0.5+$G19*0.2, SUM(F19:G19)))), 0),\"Non requis\")","v":3676.53},1,0,2,0,null,null,null,null,16421,"Nsoknsomo"]
[{"$f":"IF(INTRO!$E$33<>0,INTRO!$E$33, \" \")","v":"GUINEE EQUATORIALE"},"Litoral","Bata",205458,{"$f":"IF(INTRO!$E$48=\"\",\"\",ROUND($D20*INTRO!$E$48,0))","v":22107},{"$f":"IF(INTRO!$E$49=\"\",\"\",ROUND($D20*INTRO!$E$49,0))","v":46069},{"$f":"IF(INTRO!$E$50=\"\",\"\",ROUND($D20*INTRO!$E$50,0))","v":128566},1,0,3,2,1,{"$f":"IF(INTRO!$E$37=\"Endémique\",IF($H20>0,IF($H20=4,\"Inconnu\",IF($H20=99,\"Interrompu\",$D20)),0),\"Non requis\")","v":205458},{"$f":"IF(INTRO!$E$39=\"Endémique\", IF($I20>0, IF($I20=4,\"Inconnu\",IF($I20=99,\"Interrompu\",$D20)), 0),\"Non requis\")","v":0},{"$f":"IF(INTRO!$E$41=\"Endémique\", IF(AND($J20>1,$J20<5), IF($J20=4, \"Inconnu\", E20+F20), 0),\"Non requis\")","v":68176},{"$f":"IF(INTRO!$E$43=\"Endémique\", IF(AND($K20>0,$K20<5), IF($K20=4,\"Inconnu\", IF($K20=1, $F20*0.33, IF($K20=2, $F20*0.5+$G20*0.2, SUM(F20:G20)))), 0),\"Non requis\")","v":48747.7},1,0,2,0,null,null,null,null,16422,"Bata"]
[{"$f":"IF(INTRO!$E$33<>0,INTRO!$E$33, \" \")","v":"GUINEE EQUATORIALE"},"Litoral","Kogo",42029,{"$f":"IF(INTRO!$E$48=\"\",\"\",ROUND($D21*INTRO!$E$48,0))","v":4522},{"$f":"IF(INTRO!$E$49=\"\",\"\",ROUND($D21*INTRO!$E$49,0))","v":9424},{"$f":"IF(INTRO!$E$50=\"\",\"\",ROUND($D21*INTRO!$E$50,0))","v":26300},1,0,3,1,1,{"$f":"IF(INTRO!$E$37=\"Endémique\",IF($H21>0,IF($H21=4,\"Inconnu\",IF($H21=99,\"Interrompu\",$D21)),0),\"Non requis\")","v":42029},{"$f":"IF(INTRO!$E$39=\"Endémique\", IF($I21>0, IF($I21=4,\"Inconnu\",IF($I21=99,\"Interrompu\",$D21)), 0),\"Non requis\")","v":0},{"$f":"IF(INTRO!$E$41=\"Endémique\", IF(AND($J21>1,$J21<5), IF($J21=4, \"Inconnu\", E21+F21), 0),\"Non requis\")","v":13946},{"$f":"IF(INTRO!$E$43=\"Endémique\", IF(AND($K21>0,$K21<5), IF($K21=4,\"Inconnu\", IF($K21=1, $F21*0.33, IF($K21=2, $F21*0.5+$G21*0.2, SUM(F21:G21)))), 0),\"Non requis\")","v":3109.92},1,0,2,0,null,null,null,null,16423,"Kogo"]
[{"$f":"IF(INTRO!$E$33<>0,INTRO!$E$33, \" \")","v":"GUINEE EQUATORIALE"},"Litoral","Mbini",40380,{"$f":"IF(INTRO!$E$48=\"\",\"\",ROUND($D22*INTRO!$E$48,0))","v":4345},{"$f":"IF(INTRO!$E$49=\"\",\"\",ROUND($D22*INTRO!$E$49,0))","v":9054},{"$f":"IF(INTRO!$E$50=\"\",\"\",ROUND($D22*INTRO!$E$50,0))","v":25268},1,0,3,1,1,{"$f":"IF(INTRO!$E$37=\"Endémique\",IF($H22>0,IF($H22=4,\"Inconnu\",IF($H22=99,\"Interrompu\",$D22)),0),\"Non requis\")","v":40380},{"$f":"IF(INTRO!$E$39=\"Endémique\", IF($I22>0, IF($I22=4,\"Inconnu\",IF($I22=99,\"Interrompu\",$D22)), 0),\"Non requis\")","v":0},{"$f":"IF(INTRO!$E$41=\"Endémique\", IF(AND($J22>1,$J22<5), IF($J22=4, \"Inconnu\", E22+F22), 0),\"Non requis\")","v":13399},{"$f":"IF(INTRO!$E$43=\"Endémique\", IF(AND($K22>0,$K22<5), IF($K22=4,\"Inconnu\", IF($K22=1, $F22*0.33, IF($K22=2, $F22*0.5+$G22*0.2, SUM(F22:G22)))), 0),\"Non requis\")","v":2987.82},1,0,2,0,null,null,null,null,16424,"Mbini"]
[{"$f":"IF(INTRO!$E$33<>0,INTRO!$E$33, \" \")","v":"GUINEE EQUATORIALE"},"Welenzas","Akonibe",26084,{"$f":"IF(INTRO!$E$48=\"\",\"\",ROUND($D23*INTRO!$E$48,0))","v":2807},{"$f":"IF(INTRO!$E$49=\"\",\"\",ROUND($D23*INTRO!$E$49,0))","v":5849},{"$f":"IF(INTRO!$E$50=\"\",\"\",ROUND($D23*INTRO!$E$50,0))","v":16322},1,0,3,1,1,{"$f":"IF(INTRO!$E$37=\"Endémique\",IF($H23>0,IF($H23=4,\"Inconnu\",IF($H23=99,\"Interrompu\",$D23)),0),\"Non requis\")","v":26084},{"$f":"IF(INTRO!$E$39=\"Endémique\", IF($I23>0, IF($I23=4,\"Inconnu\",IF($I23=99,\"Interrompu\",$D23)), 0),\"Non requis\")","v":0},{"$f":"IF(INTRO!$E$41=\"Endémique\", IF(AND($J23>1,$J23<5), IF($J23=4, \"Inconnu\", E23+F23), 0),\"Non requis\")","v":8656},{"$f":"IF(INTRO!$E$43=\"Endémique\", IF(AND($K23>0,$K23<5), IF($K23=4,\"Inconnu\", IF($K23=1, $F23*0.33, IF($K23=2, $F23*0.5+$G23*0.2, SUM(F23:G23)))), 0),\"Non requis\")","v":1930.17},1,0,2,0,null,null,null,null,16425,"Akonibe"]
[{"$f":"IF(INTRO!$E$33<>0,INTRO!$E$33, \" \")","v":"GUINEE EQUATORIALE"},"Welenzas","Anisok",65064,{"$f":"IF(INTRO!$E$48=\"\",\"\",ROUND($D24*INTRO!$E$48,0))","v":7001},{"$f":"IF(INTRO!$E$49=\"\",\"\",ROUND($D24*INTRO!$E$49,0))","v":14589},{"$f":"IF(INTRO!$E$50=\"\",\"\",ROUND($D24*INTRO!$E$50,0))","v":40714},1,0,3,0,1,{"$f":"IF(INTRO!$E$37=\"Endémique\",IF($H24>0,IF($H24=4,\"Inconnu\",IF($H24=99,\"Interrompu\",$D24)),0),\"Non requis\")","v":65064},{"$f":"IF(INTRO!$E$39=\"Endémique\", IF($I24>0, IF($I24=4,\"Inconnu\",IF($I24=99,\"Interrompu\",$D24)), 0),\"Non requis\")","v":0},{"$f":"IF(INTRO!$E$41=\"Endémique\", IF(AND($J24>1,$J24<5), IF($J24=4, \"Inconnu\", E24+F24), 0),\"Non requis\")","v":21590},{"$f":"IF(INTRO!$E$43=\"Endémique\", IF(AND($K24>0,$K24<5), IF($K24=4,\"Inconnu\", IF($K24=1, $F24*0.33, IF($K24=2, $F24*0.5+$G24*0.2, SUM(F24:G24)))), 0),\"Non requis\")","v":0},1,0,2,0,null,null,null,null,16426,"Anisok"]
[{"$f":"IF(INTRO!$E$33<>0,INTRO!$E$33, \" \")","v":"GUINEE EQUATORIALE"},"Welenzas","Mongomo",68354,{"$f":"IF(INTRO!$E$48=\"\",\"\",ROUND($D25*INTRO!$E$48,0))","v":7355},{"$f":"IF(INTRO!$E$49=\"\",\"\",ROUND($D25*INTRO!$E$49,0))","v":15327},{"$f":"IF(INTRO!$E$50=\"\",\"\",ROUND($D25*INTRO!$E$50,0))","v":42773},1,0,3,0,1,{"$f":"IF(INTRO!$E$37=\"Endémique\",IF($H25>0,IF($H25=4,\"Inconnu\",IF($H25=99,\"Interrompu\",$D25)),0),\"Non requis\")","v":68354},{"$f":"IF(INTRO!$E$39=\"Endémique\", IF($I25>0, IF($I25=4,\"Inconnu\",IF($I25=99,\"Interrompu\",$D25)), 0),\"Non requis\")","v":0},{"$f":"IF(INTRO!$E$41=\"Endémique\", IF(AND($J25>1,$J25<5), IF($J25=4, \"Inconnu\", E25+F25), 0),\"Non requis\")","v":22682},{"$f":"IF(INTRO!$E$43=\"Endémique\", IF(AND($K25>0,$K25<5), IF($K25=4,\"Inconnu\", IF($K25=1, $F25*0.33, IF($K25=2, $F25*0.5+$G25*0.2, SUM(F25:G25)))), 0),\"Non requis\")","v":0},1,0,2,0,null,null,null,null,16427,"Mongomo"]
[{"$f":"IF(INTRO!$E$33<>0,INTRO!$E$33, \" \")","v":"GUINEE EQUATORIALE"},"Welenzas","Nsork",20211,{"$f":"IF(INTRO!$E$48=\"\",\"\",ROUND($D26*INTRO!$E$48,0))","v":2175},{"$f":"IF(INTRO!$E$49=\"\",\"\",ROUND($D26*INTRO!$E$49,0))","v":4532},{"$f":"IF(INTRO!$E$50=\"\",\"\",ROUND($D26*INTRO!$E$50,0))","v":12647},1,0,3,1,1,{"$f":"IF(INTRO!$E$37=\"Endémique\",IF($H26>0,IF($H26=4,\"Inconnu\",IF($H26=99,\"Interrompu\",$D26)),0),\"Non requis\")","v":20211},{"$f":"IF(INTRO!$E$39=\"Endémique\", IF($I26>0, IF($I26=4,\"Inconnu\",IF($I26=99,\"Interrompu\",$D26)), 0),\"Non requis\")","v":0},{"$f":"IF(INTRO!$E$41=\"Endémique\", IF(AND($J26>1,$J26<5), IF($J26=4, \"Inconnu\", E26+F26), 0),\"Non requis\")","v":6707},{"$f":"IF(INTRO!$E$43=\"Endémique\", IF(AND($K26>0,$K26<5), IF($K26=4,\"Inconnu\", IF($K26=1, $F26*0.33, IF($K26=2, $F26*0.5+$G26*0.2, SUM(F26:G26)))), 0),\"Non requis\")","v":1495.5600000000002},1,0,2,0,null,null,null,null,16428,"Nsork"]

{"sheet":"ALB_MBD","index":2,"n_rows":26,"n_cols":29,"rows_kept":26,"cut":false,"hidden":false,"merged":[[3,0,3,2],[3,6,3,7],[5,0,5,2],[5,6,5,7],[5,3,5,5],[6,0,7,0],[6,1,7,1],[6,2,7,2],[6,3,7,3],[5,20,5,25],[6,4,7,4],[6,5,7,5],[6,6,7,6],[6,7,7,7],[6,16,6,19],[5,11,7,11],[6,12,6,15],[5,12,5,19],[5,8,7,8],[6,22,7,22],[6,24,7,24],[5,9,5,10],[6,9,7,9],[6,10,7,10],[5,26,5,28],[6,26,7,26],[6,23,7,23],[6,20,7,20],[6,21,7,21],[6,25,7,25],[6,27,7,27],[6,28,7,28]]}
["Albendazole (ALB) et Mebendazole (MBD)"]
["Structure administrative, population ciblée par groupe d'âge, plan de traitement et information sur les comprimés"]
[]
["TOTAL",null,null,{"$f":"SUM(D$9:D$1000)","v":125745},{"$f":"SUM(E$9:E$1000)","v":262038},{"$f":"SUM(F$9:F$1000)","v":387783},null,null,{"$f":"SUM(I$9:I$1000)","v":0},{"$f":"SUM(J$9:J$1000)","v":806214},null,null,{"$f":"SUM(M$9:M$1000)","v":248629},{"$f":"SUM(N$9:N$1000)","v":92750},{"$f":"SUM(O$9:O$1000)","v":0},{"$f":"SUM(P$9:P$1000)","v":341379},{"$f":"SUM(Q$9:Q$1000)","v":0},{"$f":"SUM(R$9:R$1000)","v":0},0,0,0,1596154,7989,0,92750,465,0,0,0]
[]
["Structure administrative du pays",null,null,"Population nécessitant un traitement avec ALB/MBD",null,null,"Plan de traitement",null,"Population couverte par le PEFL avec ALB","Endémique à la Loase",null,"Médicament choisi pour le traitement des STH","Population cible",null,null,null,null,null,null,null,"Albendazole (ALB)",null,null,null,null,null,"Mebendazole (MBD)"]
["Pays","Région/Département","District","EAPréS","EAS","Total","FL","STH",null,"Population","Tours planifiés",null,"STH (ALB)",null,null,null,"STH (MBD)",null,null,null,"Reste en stock (FL)","Comprimés devant être fournis (FL)","Flacons (400mg)\n200 comprimés (FL)","Reste en stock (STH)","Comprimés devant être fournis pour EAS (STH)","Flacons (400mg)\n200 comprimés (STH)","Reste en stock","Comprimés devant être fournis pour EAS","Flacons (500mg)\n150 comprimés"]
[null,null,null,null,null,null,null,null,null,null,null,null,"EAPréS","EAS","Autres","Total","EAPréS","EAS","Autres","Total"]
[{"$f":"IF(AND(INTRO!$E$37=\"Non endémique\",INTRO!$E$41=\"Non endémique\"),\" \",IF(COUNTRY_INFO!A9=0,\" \",COUNTRY_INFO!A9))","v":"GUINEE EQUATORIALE"},{"$f":"IF(AND(INTRO!$E$37=\"Non endémique\",INTRO!$E$41=\"Non endémique\"),\" \",IF(COUNTRY_INFO!B9=0,\" \",COUNTRY_INFO!B9))","v":"Annobon"},{"$f":"IF(AND(INTRO!$E$37=\"Non endémique\",INTRO!$E$41=\"Non endémique\"),\" \",IF(COUNTRY_INFO!C9=0,\" \",COUNTRY_INFO!C9))","v":"Annonbon"},{"$f":"IF(AND(INTRO!$E$37=\"Non endémique\",INTRO!$E$41=\"Non endémique\"),0,IF(AND(OR(COUNTRY_INFO!$H9=0,COUNTRY_INFO!$H9=4,COUNTRY_INFO!$H9=99),OR(COUNTRY_INFO!$J9=0,COUNTRY_INFO!$J9=4)),0,COUNTRY_INFO!$E9))","v":873},{"$f":"IF(AND(INTRO!$E$37=\"Non endémique\",INTRO!$E$41=\"Non endémique\"),0,IF(AND(OR(COUNTRY_INFO!$H9=0,COUNTRY_INFO!$H9=4,COUNTRY_INFO!$H9=99),OR(COUNTRY_INFO!$J9=0,COUNTRY_INFO!$J9=4)),0,COUNTRY_INFO!$F9))","v":1820},{"$f":"SUM(D9:E9)","v":2693},{"$f":"IF(AND(INTRO!$E$37=\"Non endémique\",INTRO!$E$41=\"Non endémique\"),0,COUNTRY_INFO!Q9)","v":0},{"$f":"IF(AND(INTRO!$E$37=\"Non endémique\",INTRO!$E$41=\"Non endémique\"),0,COUNTRY_INFO!S9)","v":2},{"$f":"IF($G9=1,IVM!$G9,0)","v":0},{"$f":"IF($G9=0, \" \", IF(COUNTRY_INFO!$H9=1, IF(COUNTRY_INFO!$L9=1, 0,\" \"),\" \"))","v":" "},null,"ALB",{"$f":"IF($L9=\"ALB\", IF(INTRO!$E$39=\"Non endémique\",IF($H9<>0,$D9*($H9-$G9),0),$D9*$H9), 0)","v":1746},{"$f":"IF($L9=\"ALB\", IF($H9=0, 0, IF(AND($I9=0, OR($J9=0,$J9=\" \")), $E9*$H9, IF(AND($I9=0, $J9>0), IF(($H9-$K9)<=0, 0, $E9*(MAX($H9,$K9)-MIN($H9,$K9))), IF(AND($I9>0, $J9=0), $E9*($H9-$G9), IF($J9=\" \", 0, $J9*$E9/($I9+$J9)*$K9+$I9*$E9/($I9+$J9)*($H9-$G9)))))), 0)","v":3640},null,{"$f":"SUM(M9:O9)","v":5386},{"$f":"IF($L9=\"MBD\", IF(INTRO!$E$39=\"Non endémique\",IF($H9<>0,$D9*($H9-$G9),0),$D9*$H9),0)","v":0},{"$f":"IF($L9=\"MBD\", IF($H9=0, 0, IF(AND($I9=0, OR($J9=0,$J9=\" \")), $E9*$H9, IF(AND($I9=0, $J9>0), IF(($H9-$K9)<=0, 0, $E9*(MAX($H9,$K9)-MIN($H9,$K9))), IF(AND($I9>0, $J9=0), $E9*($H9-$G9), IF($J9=\" \", 0, $J9*$E9/($I9+$J9)*$K9+$I9*$E9/($I9+$J9)*($H9-$G9)))))), 0)","v":0},null,{"$f":"SUM(Q9:S9)","v":0},null,{"$f":"IF($J9<>\" \", IF(($I9+$J9*$K9)>$U9, ($I9+$J9*$K9)-$U9,0), IF($I9>$U9, $I9-$U9, 0))","v":0},{"$f":"IF($J9<>\" \", ROUNDUP(($I9+$J9*$K9)/200,0), ROUNDUP($I9/200,0))","v":0},null,{"$f":"IF($N9>$X9,$N9-$X9,0)","v":3640},{"$f":"ROUNDUP($N9/200,0)","v":19},null,{"$f":"IF($R9>$AA9,$R9-$AA9,0)","v":0},{"$f":"ROUNDUP($R9/150,0)","v":0}]
[{"$f":"IF(AND(INTRO!$E$37=\"Non endémique\",INTRO!$E$41=\"Non endémique\"),\" \",IF(COUNTRY_INFO!A10=0,\" \",COUNTRY_INFO!A10))","v":"GUINEE EQUATORIALE"},{"$f":"IF(AND(INTRO!$E$37=\"Non endémique\",INTRO!$E$41=\"Non endémique\"),\" \",IF(COUNTRY_INFO!B10=0,\" \",COUNTRY_INFO!B10))","v":"Bioko Norte"},{"$f":"IF(AND(INTRO!$E$37=\"Non endémique\",INTRO!$E$41=\"Non endémique\"),\" \",IF(COUNTRY_INFO!C10=0,\" \",COUNTRY_INFO!C10))","v":"Baney"},{"$f":"IF(AND(INTRO!$E$37=\"Non endémique\",INTRO!$E$41=\"Non endémique\"),0,IF(AND(OR(COUNTRY_INFO!$H10=0,COUNTRY_INFO!$H10=4,COUNTRY_INFO!$H10=99),OR(COUNTRY_INFO!$J10=0,COUNTRY_INFO!$J10=4)),0,COUNTRY_INFO!$E10))","v":3312},{"$f":"IF(AND(INTRO!$E$37=\"Non endémique\",INTRO!$E$41=\"Non endémique\"),0,IF(AND(OR(COUNTRY_INFO!$H10=0,COUNTRY_INFO!$H10=4,COUNTRY_INFO!$H10=99),OR(COUNTRY_INFO!$J10=0,COUNTRY_INFO!$J10=4)),0,COUNTRY_INFO!$F10))","v":6902},10214,{"$f":"IF(AND(INTRO!$E$37=\"Non endémique\",INTRO!$E$41=\"Non endémique\"),0,COUNTRY_INFO!Q10)","v":1},{"$f":"IF(AND(INTRO!$E$37=\"Non endémique\",INTRO!$E$41=\"Non endémique\"),0,COUNTRY_INFO!S10)","v":2},{"$f":"IF($G10=1,IVM!$G10,0)","v":0},26164,2,"ALB",{"$f":"IF($L10=\"ALB\", IF(INTRO!$E$39=\"Non endémique\",IF($H10<>0,$D10*($H10-$G10),0),$D10*$H10), 0)","v":6624},0,null,6624,{"$f":"IF($L10=\"MBD\", IF(INTRO!$E$39=\"Non endémique\",IF($H10<>0,$D10*($H10-$G10),0),$D10*$H10),0)","v":0},0,null,0,null,52328,262,null,0,0,null,0,0]
[{"$f":"IF(AND(INTRO!$E$37=\"Non endémique\",INTRO!$E$41=\"Non endémique\"),\" \",IF(COUNTRY_INFO!A11=0,\" \",COUNTRY_INFO!A11))","v":"GUINEE EQUATORIALE"},{"$f":"IF(AND(INTRO!$E$37=\"Non endémique\",INTRO!$E$41=\"Non endémique\"),\" \",IF(COUNTRY_INFO!B11=0,\" \",COUNTRY_INFO!B11))","v":"Bioko Norte"},{"$f":"IF(AND(INTRO!$E$37=\"Non endémique\",INTRO!$E$41=\"Non endémique\"),\" \",IF(COUNTRY_INFO!C11=0,\" \",COUNTRY_INFO!C11))","v":"Malabo"},{"$f":"IF(AND(INTRO!$E$37=\"Non endémique\",INTRO!$E$41=\"Non endémique\"),0,IF(AND(OR(COUNTRY_INFO!$H11=0,COUNTRY_INFO!$H11=4,COUNTRY_INFO!$H11=99),OR(COUNTRY_INFO!$J11=0,COUNTRY_INFO!$J11=4)),0,COUNTRY_INFO!$E11))","v":19950},{"$f":"IF(AND(INTRO!$E$37=\"Non endémique\",INTRO!$E$41=\"Non endémique\"),0,IF(AND(OR(COUNTRY_INFO!$H11=0,COUNTRY_INFO!$H11=4,COUNTRY_INFO!$H11=99),OR(COUNTRY_INFO!$J11=0,COUNTRY_INFO!$J11=4)),0,COUNTRY_INFO!$F11))","v":41574},61524,{"$f":"IF(AND(INTRO!$E$37=\"Non endémique\",INTRO!$E$41=\"Non endémique\"),0,COUNTRY_INFO!Q11)","v":0},{"$f":"IF(AND(INTRO!$E$37=\"Non endémique\",INTRO!$E$41=\"Non endémique\"),0,COUNTRY_INFO!S11)","v":2},{"$f":"IF($G11=1,IVM!$G11,0)","v":0},{"$f":"IF($G11=0, \" \", IF(COUNTRY_INFO!$H11=1, IF(COUNTRY_INFO!$L11=1, 0,\" \"),\" \"))","v":" "},null,"ALB",{"$f":"IF($L11=\"ALB\", IF(INTRO!$E$39=\"Non endémique\",IF($H11<>0,$D11*($H11-$G11),0),$D11*$H11), 0)","v":39900},83148,null,123048,{"$f":"IF($L11=\"MBD\", IF(INTRO!$E$39=\"Non endémique\",IF($H11<>0,$D11*($H11-$G11),0),$D11*$H11),0)","v":0},0,null,0,null,0,0,null,83148,416,null,0,0]
[{"$f":"IF(AND(INTRO!$E$37=\"Non endémique\",INTRO!$E$41=\"Non endémique\"),\" \",IF(COUNTRY_INFO!A12=0,\" \",COUNTRY_INFO!A12))","v":"GUINEE EQUATORIALE"},{"$f":"IF(AND(INTRO!$E$37=\"Non endémique\",INTRO!$E$41=\"Non endémique\"),\" \",IF(COUNTRY_INFO!B12=0,\" \",COUNTRY_INFO!B12))","v":"Bioko Sur"},{"$f":"IF(AND(INTRO!$E$37=\"Non endémique\",INTRO!$E$41=\"Non endémique\"),\" \",IF(COUNTRY_INFO!C12=0,\" \",COUNTRY_INFO!C12))","v":"Luba"},{"$f":"IF(AND(INTRO!$E$37=\"Non endémique\",INTRO!$E$41=\"Non endémique\"),0,IF(AND(OR(COUNTRY_INFO!$H12=0,COUNTRY_INFO!$H12=4,COUNTRY_INFO!$H12=99),OR(COUNTRY_INFO!$J12=0,COUNTRY_INFO!$J12=4)),0,COUNTRY_INFO!$E12))","v":2861},{"$f":"IF(AND(INTRO!$E$37=\"Non endémique\",INTRO!$E$41=\"Non endémique\"),0,IF(AND(OR(COUNTRY_INFO!$H12=0,COUNTRY_INFO!$H12=4,COUNTRY_INFO!$H12=99),OR(COUNTRY_INFO!$J12=0,COUNTRY_INFO!$J12=4)),0,COUNTRY_INFO!$F12))","v":5962},8823,{"$f":"IF(AND(INTRO!$E$37=\"Non endémique\",INTRO!$E$41=\"Non endémique\"),0,COUNTRY_INFO!Q12)","v":0},{"$f":"IF(AND(INTRO!$E$37=\"Non endémique\",INTRO!$E$41=\"Non endémique\"),0,COUNTRY_INFO!S12)","v":1},{"$f":"IF($G12=1,IVM!$G12,0)","v":0},{"$f":"IF($G12=0, \" \", IF(COUNTRY_INFO!$H12=1, IF(COUNTRY_INFO!$L12=1, 0,\" \"),\" \"))","v":" "},null,"ALB",{"$f":"IF($L12=\"ALB\", IF(INTRO!$E$39=\"Non endémique\",IF($H12<>0,$D12*($H12-$G12),0),$D12*$H12), 0)","v":2861},5962,null,8823,{"$f":"IF($L12=\"MBD\", IF(INTRO!$E$39=\"Non endémique\",IF($H12<>0,$D12*($H12-$G12),0),$D12*$H12),0)","v":0},0,null,0,null,0,0,null,5962,30,null,0,0]
[{"$f":"IF(AND(INTRO!$E$37=\"Non endémique\",INTRO!$E$41=\"Non endémique\"),\" \",IF(COUNTRY_INFO!A13=0,\" \",COUNTRY_INFO!A13))","v":"GUINEE EQUATORIALE"},{"$f":"IF(AND(INTRO!$E$37=\"Non endémique\",INTRO!$E$41=\"Non endémique\"),\" \",IF(COUNTRY_INFO!B13=0,\" \",COUNTRY_INFO!B13))","v":"Bioko Sur"},{"$f":"IF(AND(INTRO!$E$37=\"Non endémique\",INTRO!$E$41=\"Non endémique\"),\" \",IF(COUNTRY_INFO!C13=0,\" \",COUNTRY_INFO!C13))","v":"Riaba"},{"$f":"IF(AND(INTRO!$E$37=\"Non endémique\",INTRO!$E$41=\"Non endémique\"),0,IF(AND(OR(COUNTRY_INFO!$H13=0,COUNTRY_INFO!$H13=4,COUNTRY_INFO!$H13=99),OR(COUNTRY_INFO!$J13=0,COUNTRY_INFO!$J13=4)),0,COUNTRY_INFO!$E13))","v":1030},{"$f":"IF(AND(INTRO!$E$37=\"Non endémique\",INTRO!$E$41=\"Non endémique\"),0,IF(AND(OR(COUNTRY_INFO!$H13=0,COUNTRY_INFO!$H13=4,COUNTRY_INFO!$H13=99),OR(COUNTRY_INFO!$J13=0,COUNTRY_INFO!$J13=4)),0,COUNTRY_INFO!$F13))","v":2147},3177,{"$f":"IF(AND(INTRO!$E$37=\"Non endémique\",INTRO!$E$41=\"Non endémique\"),0,COUNTRY_INFO!Q13)","v":1},{"$f":"IF(AND(INTRO!$E$37=\"Non endémique\",INTRO!$E$41=\"Non endémique\"),0,COUNTRY_INFO!S13)","v":2},{"$f":"IF($G13=1,IVM!$G13,0)","v":0},8137,null,"ALB",{"$f":"IF($L13=\"ALB\", IF(INTRO!$E$39=\"Non endémique\",IF($H13<>0,$D13*($H13-$G13),0),$D13*$H13), 0)","v":2060},0,null,2060,{"$f":"IF($L13=\"MBD\", IF(INTRO!$E$39=\"Non endémique\",IF($H13<>0,$D13*($H13-$G13),0),$D13*$H13),0)","v":0},0,null,0,null,0,0,null,0,0,null,0,0]
[{"$f":"IF(AND(INTRO!$E$37=\"Non endémique\",INTRO!$E$41=\"Non endémique\"),\" \",IF(COUNTRY_INFO!A14=0,\" \",COUNTRY_INFO!A14))","v":"GUINEE EQUATORIALE"},{"$f":"IF(AND(INTRO!$E$37=\"Non endémique\",INTRO!$E$41=\"Non endémique\"),\" \",IF(COUNTRY_INFO!B14=0,\" \",COUNTRY_INFO!B14))","v":"Centro Sur"},{"$f":"IF(AND(INTRO!$E$37=\"Non endémique\",INTRO!$E$41=\"Non endémique\"),\" \",IF(COUNTRY_INFO!C14=0,\" \",COUNTRY_INFO!C14))","v":"Acurenam"},{"$f":"IF(AND(INTRO!$E$37=\"Non endémique\",INTRO!$E$41=\"Non endémique\"),0,IF(AND(OR(COUNTRY_INFO!$H14=0,COUNTRY_INFO!$H14=4,COUNTRY_INFO!$H14=99),OR(COUNTRY_INFO!$J14=0,COUNTRY_INFO!$J14=4)),0,COUNTRY_INFO!$E14))","v":3601},{"$f":"IF(AND(INTRO!$E$37=\"Non endémique\",INTRO!$E$41=\"Non endémique\"),0,IF(AND(OR(COUNTRY_INFO!$H14=0,COUNTRY_INFO!$H14=4,COUNTRY_INFO!$H14=99),OR(COUNTRY_INFO!$J14=0,COUNTRY_INFO!$J14=4)),0,COUNTRY_INFO!$F14))","v":7504},11105,{"$f":"IF(AND(INTRO!$E$37=\"Non endémique\",INTRO!$E$41=\"Non endémique\"),0,COUNTRY_INFO!Q14)","v":1},{"$f":"IF(AND(INTRO!$E$37=\"Non endémique\",INTRO!$E$41=\"Non endémique\"),0,COUNTRY_INFO!S14)","v":2},{"$f":"IF($G14=1,IVM!$G14,0)","v":0},28445,2,"ALB",{"$f":"IF($L14=\"ALB\", IF(INTRO!$E$39=\"Non endémique\",IF($H14<>0,$D14*($H14-$G14),0),$D14*$H14), 0)","v":7202},0,null,7202,{"$f":"IF($L14=\"MBD\", IF(INTRO!$E$39=\"Non endémique\",IF($H14<>0,$D14*($H14-$G14),0),$D14*$H14),0)","v":0},0,null,0,null,56890,285,null,0,0,null,0,0]
[{"$f":"IF(AND(INTRO!$E$37=\"Non endémique\",INTRO!$E$41=\"Non endémique\"),\" \",IF(COUNTRY_INFO!A15=0,\" \",COUNTRY_INFO!A15))","v":"GUINEE EQUATORIALE"},{"$f":"IF(AND(INTRO!$E$37=\"Non endémique\",INTRO!$E$41=\"Non endémique\"),\" \",IF(COUNTRY_INFO!B15=0,\" \",COUNTRY_INFO!B15))","v":"Centro Sur"},{"$f":"IF(AND(INTRO!$E$37=\"Non endémique\",INTRO!$E$41=\"Non endémique\"),\" \",IF(COUNTRY_INFO!C15=0,\" \",COUNTRY_INFO!C15))","v":"Evinayong"},{"$f":"IF(AND(INTRO!$E$37=\"Non endémique\",INTRO!$E$41=\"Non endémique\"),0,IF(AND(OR(COUNTRY_INFO!$H15=0,COUNTRY_INFO!$H15=4,COUNTRY_INFO!$H15=99),OR(COUNTRY_INFO!$J15=0,COUNTRY_INFO!$J15=4)),0,COUNTRY_INFO!$E15))","v":6611},{"$f":"IF(AND(INTRO!$E$37=\"Non endémique\",INTRO!$E$41=\"Non endémique\"),0,IF(AND(OR(COUNTRY_INFO!$H15=0,COUNTRY_INFO!$H15=4,COUNTRY_INFO!$H15=99),OR(COUNTRY_INFO!$J15=0,COUNTRY_INFO!$J15=4)),0,COUNTRY_INFO!$F15))","v":13777},20388,{"$f":"IF(AND(INTRO!$E$37=\"Non endémique\",INTRO!$E$41=\"Non endémique\"),0,COUNTRY_INFO!Q15)","v":1},{"$f":"IF(AND(INTRO!$E$37=\"Non endémique\",INTRO!$E$41=\"Non endémique\"),0,COUNTRY_INFO!S15)","v":2},{"$f":"IF($G15=1,IVM!$G15,0)","v":0},52224,2,"ALB",{"$f":"IF($L15=\"ALB\", IF(INTRO!$E$39=\"Non endémique\",IF($H15<>0,$D15*($H15-$G15),0),$D15*$H15), 0)","v":13222},0,null,13222,{"$f":"IF($L15=\"MBD\", IF(INTRO!$E$39=\"Non endémique\",IF($H15<>0,$D15*($H15-$G15),0),$D15*$H15),0)","v":0},0,null,0,null,104448,523,null,0,0,null,0,0]
[{"$f":"IF(AND(INTRO!$E$37=\"Non endémique\",INTRO!$E$41=\"Non endémique\"),\" \",IF(COUNTRY_INFO!A16=0,\" \",COUNTRY_INFO!A16))","v":"GUINEE EQUATORIALE"},{"$f":"IF(AND(INTRO!$E$37=\"Non endémique\",INTRO!$E$41=\"Non endémique\"),\" \",IF(COUNTRY_INFO!B16=0,\" \",COUNTRY_INFO!B16))","v":"Centro Sur"},{"$f":"IF(AND(INTRO!$E$37=\"Non endémique\",INTRO!$E$41=\"Non endémique\"),\" \",IF(COUNTRY_INFO!C16=0,\" \",COUNTRY_INFO!C16))","v":"Niefang"},{"$f":"IF(AND(INTRO!$E$37=\"Non endémique\",INTRO!$E$41=\"Non endémique\"),0,IF(AND(OR(COUNTRY_INFO!$H16=0,COUNTRY_INFO!$H16=4,COUNTRY_INFO!$H16=99),OR(COUNTRY_INFO!$J16=0,COUNTRY_INFO!$J16=4)),0,COUNTRY_INFO!$E16))","v":8470},{"$f":"IF(AND(INTRO!$E$37=\"Non endémique\",INTRO!$E$41=\"Non endémique\"),0,IF(AND(OR(COUNTRY_INFO!$H16=0,COUNTRY_INFO!$H16=4,COUNTRY_INFO!$H16=99),OR(COUNTRY_INFO!$J16=0,COUNTRY_INFO!$J16=4)),0,COUNTRY_INFO!$F16))","v":17650},26120,{"$f":"IF(AND(INTRO!$E$37=\"Non endémique\",INTRO!$E$41=\"Non endémique\"),0,COUNTRY_INFO!Q16)","v":1},{"$f":"IF(AND(INTRO!$E$37=\"Non endémique\",INTRO!$E$41=\"Non endémique\"),0,COUNTRY_INFO!S16)","v":2},{"$f":"IF($G16=1,IVM!$G16,0)","v":0},66905,2,"ALB",{"$f":"IF($L16=\"ALB\", IF(INTRO!$E$39=\"Non endémique\",IF($H16<>0,$D16*($H16-$G16),0),$D16*$H16), 0)","v":16940},0,null,16940,{"$f":"IF($L16=\"MBD\", IF(INTRO!$E$39=\"Non endémique\",IF($H16<>0,$D16*($H16-$G16),0),$D16*$H16),0)","v":0},0,null,0,null,133810,670,null,0,0,null,0,0]
[{"$f":"IF(AND(INTRO!$E$37=\"Non endémique\",INTRO!$E$41=\"Non endémique\"),\" \",IF(COUNTRY_INFO!A17=0,\" \",COUNTRY_INFO!A17))","v":"GUINEE EQUATORIALE"},{"$f":"IF(AND(INTRO!$E$37=\"Non endémique\",INTRO!$E$41=\"Non endémique\"),\" \",IF(COUNTRY_INFO!B17=0,\" \",COUNTRY_INFO!B17))","v":"Kientem"},{"$f":"IF(AND(INTRO!$E$37=\"Non endémique\",INTRO!$E$41=\"Non endémique\"),\" \",IF(COUNTRY_INFO!C17=0,\" \",COUNTRY_INFO!C17))","v":"Ebebiyin"},{"$f":"IF(AND(INTRO!$E$37=\"Non endémique\",INTRO!$E$41=\"Non endémique\"),0,IF(AND(OR(COUNTRY_INFO!$H17=0,COUNTRY_INFO!$H17=4,COUNTRY_INFO!$H17=99),OR(COUNTRY_INFO!$J17=0,COUNTRY_INFO!$J17=4)),0,COUNTRY_INFO!$E17))","v":14105},{"$f":"IF(AND(INTRO!$E$37=\"Non endémique\",INTRO!$E$41=\"Non endémique\"),0,IF(AND(OR(COUNTRY_INFO!$H17=0,COUNTRY_INFO!$H17=4,COUNTRY_INFO!$H17=99),OR(COUNTRY_INFO!$J17=0,COUNTRY_INFO!$J17=4)),0,COUNTRY_INFO!$F17))","v":29392},43497,{"$f":"IF(AND(INTRO!$E$37=\"Non endémique\",INTRO!$E$41=\"Non endémique\"),0,COUNTRY_INFO!Q17)","v":1},{"$f":"IF(AND(INTRO!$E$37=\"Non endémique\",INTRO!$E$41=\"Non endémique\"),0,COUNTRY_INFO!S17)","v":2},{"$f":"IF($G17=1,IVM!$G17,0)","v":0},111417,2,"ALB",{"$f":"IF($L17=\"ALB\", IF(INTRO!$E$39=\"Non endémique\",IF($H17<>0,$D17*($H17-$G17),0),$D17*$H17), 0)","v":28210},0,null,28210,{"$f":"IF($L17=\"MBD\", IF(INTRO!$E$39=\"Non endémique\",IF($H17<>0,$D17*($H17-$G17),0),$D17*$H17),0)","v":0},0,null,0,null,222834,1115,null,0,0,null,0,0]
[{"$f":"IF(AND(INTRO!$E$37=\"Non endémique\",INTRO!$E$41=\"Non endémique\"),\" \",IF(COUNTRY_INFO!A18=0,\" \",COUNTRY_INFO!A18))","v":"GUINEE EQUATORIALE"},{"$f":"IF(AND(INTRO!$E$37=\"Non endémique\",INTRO!$E$41=\"Non endémique\"),\" \",IF(COUNTRY_INFO!B18=0,\" \",COUNTRY_INFO!B18))","v":"Kientem"},{"$f":"IF(AND(INTRO!$E$37=\"Non endémique\",INTRO!$E$41=\"Non endémique\"),\" \",IF(COUNTRY_INFO!C18=0,\" \",COUNTRY_INFO!C18))","v":"Micomiseng"},{"$f":"IF(AND(INTRO!$E$37=\"Non endémique\",INTRO!$E$41=\"Non endémique\"),0,IF(AND(OR(COUNTRY_INFO!$H18=0,COUNTRY_INFO!$H18=4,COUNTRY_INFO!$H18=99),OR(COUNTRY_INFO!$J18=0,COUNTRY_INFO!$J18=4)),0,COUNTRY_INFO!$E18))","v":9274},{"$f":"IF(AND(INTRO!$E$37=\"Non endémique\",INTRO!$E$41=\"Non endémique\"),0,IF(AND(OR(COUNTRY_INFO!$H18=0,COUNTRY_INFO!$H18=4,COUNTRY_INFO!$H18=99),OR(COUNTRY_INFO!$J18=0,COUNTRY_INFO!$J18=4)),0,COUNTRY_INFO!$F18))","v":19325},28599,{"$f":"IF(AND(INTRO!$E$37=\"Non endémique\",INTRO!$E$41=\"Non endémique\"),0,COUNTRY_INFO!Q18)","v":1},{"$f":"IF(AND(INTRO!$E$37=\"Non endémique\",INTRO!$E$41=\"Non endémique\"),0,COUNTRY_INFO!S18)","v":2},{"$f":"IF($G18=1,IVM!$G18,0)","v":0},73255,2,"ALB",{"$f":"IF($L18=\"ALB\", IF(INTRO!$E$39=\"Non endémique\",IF($H18<>0,$D18*($H18-$G18),0),$D18*$H18), 0)","v":18548},0,null,18548,{"$f":"IF($L18=\"MBD\", IF(INTRO!$E$39=\"Non endémique\",IF($H18<>0,$D18*($H18-$G18),0),$D18*$H18),0)","v":0},0,null,0,null,146510,733,null,0,0,null,0,0]
[{"$f":"IF(AND(INTRO!$E$37=\"Non endémique\",INTRO!$E$41=\"Non endémique\"),\" \",IF(COUNTRY_INFO!A19=0,\" \",COUNTRY_INFO!A19))","v":"GUINEE EQUATORIALE"},{"$f":"IF(AND(INTRO!$E$37=\"Non endémique\",INTRO!$E$41=\"Non endémique\"),\" \",IF(COUNTRY_INFO!B19=0,\" \",COUNTRY_INFO!B19))","v":"Kientem"},{"$f":"IF(AND(INTRO!$E$37=\"Non endémique\",INTRO!$E$41=\"Non endémique\"),\" \",IF(COUNTRY_INFO!C19=0,\" \",COUNTRY_INFO!C19))","v":"Nsoknsomo"},{"$f":"IF(AND(INTRO!$E$37=\"Non endémique\",INTRO!$E$41=\"Non endémique\"),0,IF(AND(OR(COUNTRY_INFO!$H19=0,COUNTRY_INFO!$H19=4,COUNTRY_INFO!$H19=99),OR(COUNTRY_INFO!$J19=0,COUNTRY_INFO!$J19=4)),0,COUNTRY_INFO!$E19))","v":5346},{"$f":"IF(AND(INTRO!$E$37=\"Non endémique\",INTRO!$E$41=\"Non endémique\"),0,IF(AND(OR(COUNTRY_INFO!$H19=0,COUNTRY_INFO!$H19=4,COUNTRY_INFO!$H19=99),OR(COUNTRY_INFO!$J19=0,COUNTRY_INFO!$J19=4)),0,COUNTRY_INFO!$F19))","v":11141},16487,{"$f":"IF(AND(INTRO!$E$37=\"Non endémique\",INTRO!$E$41=\"Non endémique\"),0,COUNTRY_INFO!Q19)","v":1},{"$f":"IF(AND(INTRO!$E$37=\"Non endémique\",INTRO!$E$41=\"Non endémique\"),0,COUNTRY_INFO!S19)","v":2},{"$f":"IF($G19=1,IVM!$G19,0)","v":0},42233,2,"ALB",{"$f":"IF($L19=\"ALB\", IF(INTRO!$E$39=\"Non endémique\",IF($H19<>0,$D19*($H19-$G19),0),$D19*$H19), 0)","v":10692},0,null,10692,{"$f":"IF($L19=\"MBD\", IF(INTRO!$E$39=\"Non endémique\",IF($H19<>0,$D19*($H19-$G19),0),$D19*$H19),0)","v":0},0,null,0,null,84466,423,null,0,0,null,0,0]
[{"$f":"IF(AND(INTRO!$E$37=\"Non endémique\",INTRO!$E$41=\"Non endémique\"),\" \",IF(COUNTRY_INFO!A20=0,\" \",COUNTRY_INFO!A20))","v":"GUINEE EQUATORIALE"},{"$f":"IF(AND(INTRO!$E$37=\"Non endémique\",INTRO!$E$41=\"Non endémique\"),\" \",IF(COUNTRY_INFO!B20=0,\" \",COUNTRY_INFO!B20))","v":"Litoral"},{"$f":"IF(AND(INTRO!$E$37=\"Non endémique\",INTRO!$E$41=\"Non endémique\"),\" \",IF(COUNTRY_INFO!C20=0,\" \",COUNTRY_INFO!C20))","v":"Bata"},{"$f":"IF(AND(INTRO!$E$37=\"Non endémique\",INTRO!$E$41=\"Non endémique\"),0,IF(AND(OR(COUNTRY_INFO!$H20=0,COUNTRY_INFO!$H20=4,COUNTRY_INFO!$H20=99),OR(COUNTRY_INFO!$J20=0,COUNTRY_INFO!$J20=4)),0,COUNTRY_INFO!$E20))","v":22107},{"$f":"IF(AND(INTRO!$E$37=\"Non endémique\",INTRO!$E$41=\"Non endémique\"),0,IF(AND(OR(COUNTRY_INFO!$H20=0,COUNTRY_INFO!$H20=4,COUNTRY_INFO!$H20=99),OR(COUNTRY_INFO!$J20=0,COUNTRY_INFO!$J20=4)),0,COUNTRY_INFO!$F20))","v":46069},68176,{"$f":"IF(AND(INTRO!$E$37=\"Non endémique\",INTRO!$E$41=\"Non endémique\"),0,COUNTRY_INFO!Q20)","v":1},{"$f":"IF(AND(INTRO!$E$37=\"Non endémique\",INTRO!$E$41=\"Non endémique\"),0,COUNTRY_INFO!S20)","v":2},{"$f":"IF($G20=1,IVM!$G20,0)","v":0},174635,2,"ALB",{"$f":"IF($L20=\"ALB\", IF(INTRO!$E$39=\"Non endémique\",IF($H20<>0,$D20*($H20-$G20),0),$D20*$H20), 0)","v":44214},0,null,44214,{"$f":"IF($L20=\"MBD\", IF(INTRO!$E$39=\"Non endémique\",IF($H20<>0,$D20*($H20-$G20),0),$D20*$H20),0)","v":0},0,null,0,null,349270,1747,null,0,0,null,0,0]
[{"$f":"IF(AND(INTRO!$E$37=\"Non endémique\",INTRO!$E$41=\"Non endémique\"),\" \",IF(COUNTRY_INFO!A21=0,\" \",COUNTRY_INFO!A21))","v":"GUINEE EQUATORIALE"},{"$f":"IF(AND(INTRO!$E$37=\"Non endémique\",INTRO!$E$41=\"Non endémique\"),\" \",IF(COUNTRY_INFO!B21=0,\" \",COUNTRY_INFO!B21))","v":"Litoral"},{"$f":"IF(AND(INTRO!$E$37=\"Non endémique\",INTRO!$E$41=\"Non endémique\"),\" \",IF(COUNTRY_INFO!C21=0,\" \",COUNTRY_INFO!C21))","v":"Kogo"},{"$f":"IF(AND(INTRO!$E$37=\"Non endémique\",INTRO!$E$41=\"Non endémique\"),0,IF(AND(OR(COUNTRY_INFO!$H21=0,COUNTRY_INFO!$H21=4,COUNTRY_INFO!$H21=99),OR(COUNTRY_INFO!$J21=0,COUNTRY_INFO!$J21=4)),0,COUNTRY_INFO!$E21))","v":4522},{"$f":"IF(AND(INTRO!$E$37=\"Non endémique\",INTRO!$E$41=\"Non endémique\"),0,IF(AND(OR(COUNTRY_INFO!$H21=0,COUNTRY_INFO!$H21=4,COUNTRY_INFO!$H21=99),OR(COUNTRY_INFO!$J21=0,COUNTRY_INFO!$J21=4)),0,COUNTRY_INFO!$F21))","v":9424},13946,{"$f":"IF(AND(INTRO!$E$37=\"Non endémique\",INTRO!$E$41=\"Non endémique\"),0,COUNTRY_INFO!Q21)","v":1},{"$f":"IF(AND(INTRO!$E$37=\"Non endémique\",INTRO!$E$41=\"Non endémique\"),0,COUNTRY_INFO!S21)","v":2},{"$f":"IF($G21=1,IVM!$G21,0)","v":0},35724,2,"ALB",{"$f":"IF($L21=\"ALB\", IF(INTRO!$E$39=\"Non endémique\",IF($H21<>0,$D21*($H21-$G21),0),$D21*$H21), 0)","v":9044},0,null,9044,{"$f":"IF($L21=\"MBD\", IF(INTRO!$E$39=\"Non endémique\",IF($H21<>0,$D21*($H21-$G21),0),$D21*$H21),0)","v":0},0,null,0,null,71448,358,null,0,0,null,0,0]
[{"$f":"IF(AND(INTRO!$E$37=\"Non endémique\",INTRO!$E$41=\"Non endémique\"),\" \",IF(COUNTRY_INFO!A22=0,\" \",COUNTRY_INFO!A22))","v":"GUINEE EQUATORIALE"},{"$f":"IF(AND(INTRO!$E$37=\"Non endémique\",INTRO!$E$41=\"Non endémique\"),\" \",IF(COUNTRY_INFO!B22=0,\" \",COUNTRY_INFO!B22))","v":"Litoral"},{"$f":"IF(AND(INTRO!$E$37=\"Non endémique\",INTRO!$E$41=\"Non endémique\"),\" \",IF(COUNTRY_INFO!C22=0,\" \",COUNTRY_INFO!C22))","v":"Mbini"},{"$f":"IF(AND(INTRO!$E$37=\"Non endémique\",INTRO!$E$41=\"Non endémique\"),0,IF(AND(OR(COUNTRY_INFO!$H22=0,COUNTRY_INFO!$H22=4,COUNTRY_INFO!$H22=99),OR(COUNTRY_INFO!$J22=0,COUNTRY_INFO!$J22=4)),0,COUNTRY_INFO!$E22))","v":4345},{"$f":"IF(AND(INTRO!$E$37=\"Non endémique\",INTRO!$E$41=\"Non endémique\"),0,IF(AND(OR(COUNTRY_INFO!$H22=0,COUNTRY_INFO!$H22=4,COUNTRY_INFO!$H22=99),OR(COUNTRY_INFO!$J22=0,COUNTRY_INFO!$J22=4)),0,COUNTRY_INFO!$F22))","v":9054},13399,{"$f":"IF(AND(INTRO!$E$37=\"Non endémique\",INTRO!$E$41=\"Non endémique\"),0,COUNTRY_INFO!Q22)","v":1},{"$f":"IF(AND(INTRO!$E$37=\"Non endémique\",INTRO!$E$41=\"Non endémique\"),0,COUNTRY_INFO!S22)","v":2},{"$f":"IF($G22=1,IVM!$G22,0)","v":0},34322,2,"ALB",{"$f":"IF($L22=\"ALB\", IF(INTRO!$E$39=\"Non endémique\",IF($H22<>0,$D22*($H22-$G22),0),$D22*$H22), 0)","v":8690},0,null,8690,{"$f":"IF($L22=\"MBD\", IF(INTRO!$E$39=\"Non endémique\",IF($H22<>0,$D22*($H22-$G22),0),$D22*$H22),0)","v":0},0,null,0,null,68644,344,null,0,0,null,0,0]
[{"$f":"IF(AND(INTRO!$E$37=\"Non endémique\",INTRO!$E$41=\"Non endémique\"),\" \",IF(COUNTRY_INFO!A23=0,\" \",COUNTRY_INFO!A23))","v":"GUINEE EQUATORIALE"},{"$f":"IF(AND(INTRO!$E$37=\"Non endémique\",INTRO!$E$41=\"Non endémique\"),\" \",IF(COUNTRY_INFO!B23=0,\" \",COUNTRY_INFO!B23))","v":"Welenzas"},{"$f":"IF(AND(INTRO!$E$37=\"Non endémique\",INTRO!$E$41=\"Non endémique\"),\" \",IF(COUNTRY_INFO!C23=0,\" \",COUNTRY_INFO!C23))","v":"Akonibe"},{"$f":"IF(AND(INTRO!$E$37=\"Non endémique\",INTRO!$E$41=\"Non endémique\"),0,IF(AND(OR(COUNTRY_INFO!$H23=0,COUNTRY_INFO!$H23=4,COUNTRY_INFO!$H23=99),OR(COUNTRY_INFO!$J23=0,COUNTRY_INFO!$J23=4)),0,COUNTRY_INFO!$E23))","v":2807},{"$f":"IF(AND(INTRO!$E$37=\"Non endémique\",INTRO!$E$41=\"Non endémique\"),0,IF(AND(OR(COUNTRY_INFO!$H23=0,COUNTRY_INFO!$H23=4,COUNTRY_INFO!$H23=99),OR(COUNTRY_INFO!$J23=0,COUNTRY_INFO!$J23=4)),0,COUNTRY_INFO!$F23))","v":5849},8656,{"$f":"IF(AND(INTRO!$E$37=\"Non endémique\",INTRO!$E$41=\"Non endémique\"),0,COUNTRY_INFO!Q23)","v":1},{"$f":"IF(AND(INTRO!$E$37=\"Non endémique\",INTRO!$E$41=\"Non endémique\"),0,COUNTRY_INFO!S23)","v":2},{"$f":"IF($G23=1,IVM!$G23,0)","v":0},22171,2,"ALB",{"$f":"IF($L23=\"ALB\", IF(INTRO!$E$39=\"Non endémique\",IF($H23<>0,$D23*($H23-$G23),0),$D23*$H23), 0)","v":5614},0,null,5614,{"$f":"IF($L23=\"MBD\", IF(INTRO!$E$39=\"Non endémique\",IF($H23<>0,$D23*($H23-$G23),0),$D23*$H23),0)","v":0},0,null,0,null,44342,222,null,0,0,null,0,0]
[{"$f":"IF(AND(INTRO!$E$37=\"Non endémique\",INTRO!$E$41=\"Non endémique\"),\" \",IF(COUNTRY_INFO!A24=0,\" \",COUNTRY_INFO!A24))","v":"GUINEE EQUATORIALE"},{"$f":"IF(AND(INTRO!$E$37=\"Non endémique\",INTRO!$E$41=\"Non endémique\"),\" \",IF(COUNTRY_INFO!B24=0,\" \",COUNTRY_INFO!B24))","v":"Welenzas"},{"$f":"IF(AND(INTRO!$E$37=\"Non endémique\",INTRO!$E$41=\"Non endémique\"),\" \",IF(COUNTRY_INFO!C24=0,\" \",COUNTRY_INFO!C24))","v":"Anisok"},{"$f":"IF(AND(INTRO!$E$37=\"Non endémique\",INTRO!$E$41=\"Non endémique\"),0,IF(AND(OR(COUNTRY_INFO!$H24=0,COUNTRY_INFO!$H24=4,COUNTRY_INFO!$H24=99),OR(COUNTRY_INFO!$J24=0,COUNTRY_INFO!$J24=4)),0,COUNTRY_INFO!$E24))","v":7001},{"$f":"IF(AND(INTRO!$E$37=\"Non endémique\",INTRO!$E$41=\"Non endémique\"),0,IF(AND(OR(COUNTRY_INFO!$H24=0,COUNTRY_INFO!$H24=4,COUNTRY_INFO!$H24=99),OR(COUNTRY_INFO!$J24=0,COUNTRY_INFO!$J24=4)),0,COUNTRY_INFO!$F24))","v":14589},21590,{"$f":"IF(AND(INTRO!$E$37=\"Non endémique\",INTRO!$E$41=\"Non endémique\"),0,COUNTRY_INFO!Q24)","v":1},{"$f":"IF(AND(INTRO!$E$37=\"Non endémique\",INTRO!$E$41=\"Non endémique\"),0,COUNTRY_INFO!S24)","v":2},{"$f":"IF($G24=1,IVM!$G24,0)","v":0},55303,2,"ALB",{"$f":"IF($L24=\"ALB\", IF(INTRO!$E$39=\"Non endémique\",IF($H24<>0,$D24*($H24-$G24),0),$D24*$H24), 0)","v":14002},0,null,14002,{"$f":"IF($L24=\"MBD\", IF(INTRO!$E$39=\"Non endémique\",IF($H24<>0,$D24*($H24-$G24),0),$D24*$H24),0)","v":0},0,null,0,null,110606,554,null,0,0,null,0,0]
[{"$f":"IF(AND(INTRO!$E$37=\"Non endémique\",INTRO!$E$41=\"Non endémique\"),\" \",IF(COUNTRY_INFO!A25=0,\" \",COUNTRY_INFO!A25))","v":"GUINEE EQUATORIALE"},{"$f":"IF(AND(INTRO!$E$37=\"Non endémique\",INTRO!$E$41=\"Non endémique\"),\" \",IF(COUNTRY_INFO!B25=0,\" \",COUNTRY_INFO!B25))","v":"Welenzas"},{"$f":"IF(AND(INTRO!$E$37=\"Non endémique\",INTRO!$E$41=\"Non endémique\"),\" \",IF(COUNTRY_INFO!C25=0,\" \",COUNTRY_INFO!C25))","v":"Mongomo"},{"$f":"IF(AND(INTRO!$E$37=\"Non endémique\",INTRO!$E$41=\"Non endémique\"),0,IF(AND(OR(COUNTRY_INFO!$H25=0,COUNTRY_INFO!$H25=4,COUNTRY_INFO!$H25=99),OR(COUNTRY_INFO!$J25=0,COUNTRY_INFO!$J25=4)),0,COUNTRY_INFO!$E25))","v":7355},{"$f":"IF(AND(INTRO!$E$37=\"Non endémique\",INTRO!$E$41=\"Non endémique\"),0,IF(AND(OR(COUNTRY_INFO!$H25=0,COUNTRY_INFO!$H25=4,COUNTRY_INFO!$H25=99),OR(COUNTRY_INFO!$J25=0,COUNTRY_INFO!$J25=4)),0,COUNTRY_INFO!$F25))","v":15327},22682,{"$f":"IF(AND(INTRO!$E$37=\"Non endémique\",INTRO!$E$41=\"Non endémique\"),0,COUNTRY_INFO!Q25)","v":1},{"$f":"IF(AND(INTRO!$E$37=\"Non endémique\",INTRO!$E$41=\"Non endémique\"),0,COUNTRY_INFO!S25)","v":2},{"$f":"IF($G25=1,IVM!$G25,0)","v":0},58100,2,"ALB",{"$f":"IF($L25=\"ALB\", IF(INTRO!$E$39=\"Non endémique\",IF($H25<>0,$D25*($H25-$G25),0),$D25*$H25), 0)","v":14710},0,null,14710,{"$f":"IF($L25=\"MBD\", IF(INTRO!$E$39=\"Non endémique\",IF($H25<>0,$D25*($H25-$G25),0),$D25*$H25),0)","v":0},0,null,0,null,116200,581,null,0,0,null,0,0]
[{"$f":"IF(AND(INTRO!$E$37=\"Non endémique\",INTRO!$E$41=\"Non endémique\"),\" \",IF(COUNTRY_INFO!A26=0,\" \",COUNTRY_INFO!A26))","v":"GUINEE EQUATORIALE"},{"$f":"IF(AND(INTRO!$E$37=\"Non endémique\",INTRO!$E$41=\"Non endémique\"),\" \",IF(COUNTRY_INFO!B26=0,\" \",COUNTRY_INFO!B26))","v":"Welenzas"},{"$f":"IF(AND(INTRO!$E$37=\"Non endémique\",INTRO!$E$41=\"Non endémique\"),\" \",IF(COUNTRY_INFO!C26=0,\" \",COUNTRY_INFO!C26))","v":"Nsork"},{"$f":"IF(AND(INTRO!$E$37=\"Non endémique\",INTRO!$E$41=\"Non endémique\"),0,IF(AND(OR(COUNTRY_INFO!$H26=0,COUNTRY_INFO!$H26=4,COUNTRY_INFO!$H26=99),OR(COUNTRY_INFO!$J26=0,COUNTRY_INFO!$J26=4)),0,COUNTRY_INFO!$E26))","v":2175},{"$f":"IF(AND(INTRO!$E$37=\"Non endémique\",INTRO!$E$41=\"Non endémique\"),0,IF(AND(OR(COUNTRY_INFO!$H26=0,COUNTRY_INFO!$H26=4,COUNTRY_INFO!$H26=99),OR(COUNTRY_INFO!$J26=0,COUNTRY_INFO!$J26=4)),0,COUNTRY_INFO!$F26))","v":4532},6707,{"$f":"IF(AND(INTRO!$E$37=\"Non endémique\",INTRO!$E$41=\"Non endémique\"),0,COUNTRY_INFO!Q26)","v":1},{"$f":"IF(AND(INTRO!$E$37=\"Non endémique\",INTRO!$E$41=\"Non endémique\"),0,COUNTRY_INFO!S26)","v":2},{"$f":"IF($G26=1,IVM!$G26,0)","v":0},17179,2,"ALB",{"$f":"IF($L26=\"ALB\", IF(INTRO!$E$39=\"Non endémique\",IF($H26<>0,$D26*($H26-$G26),0),$D26*$H26), 0)","v":4350},0,null,4350,{"$f":"IF($L26=\"MBD\", IF(INTRO!$E$39=\"Non endémique\",IF($H26<>0,$D26*($H26-$G26),0),$D26*$H26),0)","v":0},0,null,0,null,34358,172,null,0,0,null,0,0]

{"sheet":"PZQ","index":3,"n_rows":26,"n_cols":18,"rows_kept":26,"cut":false,"hidden":false,"merged":[[5,12,5,17],[6,6,7,6],[6,8,7,8],[6,9,7,9],[3,0,3,2],[5,0,5,2],[5,3,5,5],[5,8,5,11],[5,6,5,7],[6,10,7,10],[6,17,7,17],[6,13,7,13],[6,14,7,14],[6,15,7,15],[6,11,7,11],[6,12,7,12],[6,16,7,16],[6,4,7,4],[6,5,7,5],[6,7,7,7],[6,0,7,0],[6,1,7,1],[6,2,7,2],[6,3,7,3]]}
["Praziquantel (PZQ)"]
["Structure administrative, population ciblée par groupe d'âge, plan de traitement et information sur les comprimés"]
[]
["TOTAL",null,null,{"$f":"SUM(D$9:D$1000)","v":88223},{"$f":"SUM(E$9:E$1000)","v":48917.8},{"$f":"SUM(F$9:F$1000)","v":137140.80000000002},null,null,{"$f":"SUM(I$9:I$1000)","v":0},0,0,0,0,0,0,0,0,0]
[]
["Structure administrative du pays",null,null,"Population nécessitant un traitement avec PZQ",null,null,"Plan de traitement",null,"Population cible",null,null,null,"Praziquantel (PZQ)"]
["Pays","Région/Département","District","EAS","Adultes","Total","SCH","Tous EAS ciblés ?","EAS","EAS à un niveau inférieur","Adultes","Total","EAS","Adultes","Total requis\npour EAS","Reste en stock","Comprimés devant être fournis","Flacons (600mg)\n1000 comprimés"]
[]
[{"$f":"IF(INTRO!$E$43=\"Non endémique\",\" \", IF(COUNTRY_INFO!A9=0,\" \",COUNTRY_INFO!A9))","v":"GUINEE EQUATORIALE"},{"$f":"IF(INTRO!$E$43=\"Non endémique\",\" \", IF(COUNTRY_INFO!B9=0,\" \",COUNTRY_INFO!B9))","v":"Annobon"},{"$f":"IF(INTRO!$E$43=\"Non endémique\",\" \", IF(COUNTRY_INFO!C9=0,\" \",COUNTRY_INFO!C9))","v":"Annonbon"},{"$f":"IF(INTRO!$E$43=\"Non endémique\", 0, IF(COUNTRY_INFO!$K9>0, IF(COUNTRY_INFO!$K9=4, 0, IF(COUNTRY_INFO!$K9=1, COUNTRY_INFO!$F9*0.33, IF(COUNTRY_INFO!$K9=2, COUNTRY_INFO!$F9*0.5, COUNTRY_INFO!$F9))), 0))","v":0},{"$f":"IF(INTRO!$E$43=\"Non endémique\", 0, IF(COUNTRY_INFO!$K9>0, IF(COUNTRY_INFO!$K9=4, 0, IF(COUNTRY_INFO!$K9=1, 0, IF(COUNTRY_INFO!$K9=2, COUNTRY_INFO!$G9*0.2, COUNTRY_INFO!$G9))), 0))","v":0},{"$f":"SUM(D9:E9)","v":0},{"$f":"IF(INTRO!$E$43=\"Non endémique\", \"Non requis\", COUNTRY_INFO!T9)","v":0},null,{"$f":"IF($D9=0,0,IF(AND($G9>0,$H9<>\"Oui\"),D9,IF(AND($G9>0,$H9=\"Oui\"),COUNTRY_INFO!$F9,0)))","v":0},null,{"$f":"IF($G9>0,E9, 0)","v":0},{"$f":"IF($J9=0,SUM(I9,K9),SUM(J9,K9))","v":0},{"$f":"IF($J9=0,$I9*2.5,$J9*2.5)","v":0},{"$f":"$K9*3","v":0},{"$f":"M9","v":0},null,{"$f":"IF($O9>$P9,O9-P9,0)","v":0},{"$f":"ROUNDUP($O9/1000,0)","v":0}]
[{"$f":"IF(INTRO!$E$43=\"Non endémique\",\" \", IF(COUNTRY_INFO!A10=0,\" \",COUNTRY_INFO!A10))","v":"GUINEE EQUATORIALE"},{"$f":"IF(INTRO!$E$43=\"Non endémique\",\" \", IF(COUNTRY_INFO!B10=0,\" \",COUNTRY_INFO!B10))","v":"Bioko Norte"},{"$f":"IF(INTRO!$E$43=\"Non endémique\",\" \", IF(COUNTRY_INFO!C10=0,\" \",COUNTRY_INFO!C10))","v":"Baney"},{"$f":"IF(INTRO!$E$43=\"Non endémique\", 0, IF(COUNTRY_INFO!$K10>0, IF(COUNTRY_INFO!$K10=4, 0, IF(COUNTRY_INFO!$K10=1, COUNTRY_INFO!$F10*0.33, IF(COUNTRY_INFO!$K10=2, COUNTRY_INFO!$F10*0.5, COUNTRY_INFO!$F10))), 0))","v":2277.6600000000003},{"$f":"IF(INTRO!$E$43=\"Non endémique\", 0, IF(COUNTRY_INFO!$K10>0, IF(COUNTRY_INFO!$K10=4, 0, IF(COUNTRY_INFO!$K10=1, 0, IF(COUNTRY_INFO!$K10=2, COUNTRY_INFO!$G10*0.2, COUNTRY_INFO!$G10))), 0))","v":0},2277.6600000000003,{"$f":"IF(INTRO!$E$43=\"Non endémique\", \"Non requis\", COUNTRY_INFO!T10)","v":0},null,{"$f":"IF($D10=0,0,IF(AND($G10>0,$H10<>\"Oui\"),D10,IF(AND($G10>0,$H10=\"Oui\"),COUNTRY_INFO!$F10,0)))","v":0},null,0,0,0,0,0,null,0,0]
[{"$f":"IF(INTRO!$E$43=\"Non endémique\",\" \", IF(COUNTRY_INFO!A11=0,\" \",COUNTRY_INFO!A11))","v":"GUINEE EQUATORIALE"},{"$f":"IF(INTRO!$E$43=\"Non endémique\",\" \", IF(COUNTRY_INFO!B11=0,\" \",COUNTRY_INFO!B11))","v":"Bioko Norte"},{"$f":"IF(INTRO!$E$43=\"Non endémique\",\" \", IF(COUNTRY_INFO!C11=0,\" \",COUNTRY_INFO!C11))","v":"Malabo"},{"$f":"IF(INTRO!$E$43=\"Non endémique\", 0, IF(COUNTRY_INFO!$K11>0, IF(COUNTRY_INFO!$K11=4, 0, IF(COUNTRY_INFO!$K11=1, COUNTRY_INFO!$F11*0.33, IF(COUNTRY_INFO!$K11=2, COUNTRY_INFO!$F11*0.5, COUNTRY_INFO!$F11))), 0))","v":20787},{"$f":"IF(INTRO!$E$43=\"Non endémique\", 0, IF(COUNTRY_INFO!$K11>0, IF(COUNTRY_INFO!$K11=4, 0, IF(COUNTRY_INFO!$K11=1, 0, IF(COUNTRY_INFO!$K11=2, COUNTRY_INFO!$G11*0.2, COUNTRY_INFO!$G11))), 0))","v":23204.600000000002},43991.600000000006,{"$f":"IF(INTRO!$E$43=\"Non endémique\", \"Non requis\", COUNTRY_INFO!T11)","v":0},null,{"$f":"IF($D11=0,0,IF(AND($G11>0,$H11<>\"Oui\"),D11,IF(AND($G11>0,$H11=\"Oui\"),COUNTRY_INFO!$F11,0)))","v":0},null,0,0,0,0,0,null,0,0]
[{"$f":"IF(INTRO!$E$43=\"Non endémique\",\" \", IF(COUNTRY_INFO!A12=0,\" \",COUNTRY_INFO!A12))","v":"GUINEE EQUATORIALE"},{"$f":"IF(INTRO!$E$43=\"Non endémique\",\" \", IF(COUNTRY_INFO!B12=0,\" \",COUNTRY_INFO!B12))","v":"Bioko Sur"},{"$f":"IF(INTRO!$E$43=\"Non endémique\",\" \", IF(COUNTRY_INFO!C12=0,\" \",COUNTRY_INFO!C12))","v":"Luba"},{"$f":"IF(INTRO!$E$43=\"Non endémique\", 0, IF(COUNTRY_INFO!$K12>0, IF(COUNTRY_INFO!$K12=4, 0, IF(COUNTRY_INFO!$K12=1, COUNTRY_INFO!$F12*0.33, IF(COUNTRY_INFO!$K12=2, COUNTRY_INFO!$F12*0.5, COUNTRY_INFO!$F12))), 0))","v":0},{"$f":"IF(INTRO!$E$43=\"Non endémique\", 0, IF(COUNTRY_INFO!$K12>0, IF(COUNTRY_INFO!$K12=4, 0, IF(COUNTRY_INFO!$K12=1, 0, IF(COUNTRY_INFO!$K12=2, COUNTRY_INFO!$G12*0.2, COUNTRY_INFO!$G12))), 0))","v":0},0,{"$f":"IF(INTRO!$E$43=\"Non endémique\", \"Non requis\", COUNTRY_INFO!T12)","v":0},null,{"$f":"IF($D12=0,0,IF(AND($G12>0,$H12<>\"Oui\"),D12,IF(AND($G12>0,$H12=\"Oui\"),COUNTRY_INFO!$F12,0)))","v":0},null,0,0,0,0,0,null,0,0]
[{"$f":"IF(INTRO!$E$43=\"Non endémique\",\" \", IF(COUNTRY_INFO!A13=0,\" \",COUNTRY_INFO!A13))","v":"GUINEE EQUATORIALE"},{"$f":"IF(INTRO!$E$43=\"Non endémique\",\" \", IF(COUNTRY_INFO!B13=0,\" \",COUNTRY_INFO!B13))","v":"Bioko Sur"},{"$f":"IF(INTRO!$E$43=\"Non endémique\",\" \", IF(COUNTRY_INFO!C13=0,\" \",COUNTRY_INFO!C13))","v":"Riaba"},{"$f":"IF(INTRO!$E$43=\"Non endémique\", 0, IF(COUNTRY_INFO!$K13>0, IF(COUNTRY_INFO!$K13=4, 0, IF(COUNTRY_INFO!$K13=1, COUNTRY_INFO!$F13*0.33, IF(COUNTRY_INFO!$K13=2, COUNTRY_INFO!$F13*0.5, COUNTRY_INFO!$F13))), 0))","v":0},{"$f":"IF(INTRO!$E$43=\"Non endémique\", 0, IF(COUNTRY_INFO!$K13>0, IF(COUNTRY_INFO!$K13=4, 0, IF(COUNTRY_INFO!$K13=1, 0, IF(COUNTRY_INFO!$K13=2, COUNTRY_INFO!$G13*0.2, COUNTRY_INFO!$G13))), 0))","v":0},0,{"$f":"IF(INTRO!$E$43=\"Non endémique\", \"Non requis\", COUNTRY_INFO!T13)","v":0},null,{"$f":"IF($D13=0,0,IF(AND($G13>0,$H13<>\"Oui\"),D13,IF(AND($G13>0,$H13=\"Oui\"),COUNTRY_INFO!$F13,0)))","v":0},null,0,0,0,0,0,null,0,0]
[{"$f":"IF(INTRO!$E$43=\"Non endémique\",\" \", IF(COUNTRY_INFO!A14=0,\" \",COUNTRY_INFO!A14))","v":"GUINEE EQUATORIALE"},{"$f":"IF(INTRO!$E$43=\"Non endémique\",\" \", IF(COUNTRY_INFO!B14=0,\" \",COUNTRY_INFO!B14))","v":"Centro Sur"},{"$f":"IF(INTRO!$E$43=\"Non endémique\",\" \", IF(COUNTRY_INFO!C14=0,\" \",COUNTRY_INFO!C14))","v":"Acurenam"},{"$f":"IF(INTRO!$E$43=\"Non endémique\", 0, IF(COUNTRY_INFO!$K14>0, IF(COUNTRY_INFO!$K14=4, 0, IF(COUNTRY_INFO!$K14=1, COUNTRY_INFO!$F14*0.33, IF(COUNTRY_INFO!$K14=2, COUNTRY_INFO!$F14*0.5, COUNTRY_INFO!$F14))), 0))","v":2476.3200000000002},{"$f":"IF(INTRO!$E$43=\"Non endémique\", 0, IF(COUNTRY_INFO!$K14>0, IF(COUNTRY_INFO!$K14=4, 0, IF(COUNTRY_INFO!$K14=1, 0, IF(COUNTRY_INFO!$K14=2, COUNTRY_INFO!$G14*0.2, COUNTRY_INFO!$G14))), 0))","v":0},2476.3200000000002,{"$f":"IF(INTRO!$E$43=\"Non endémique\", \"Non requis\", COUNTRY_INFO!T14)","v":0},null,{"$f":"IF($D14=0,0,IF(AND($G14>0,$H14<>\"Oui\"),D14,IF(AND($G14>0,$H14=\"Oui\"),COUNTRY_INFO!$F14,0)))","v":0},null,0,0,0,0,0,null,0,0]
[{"$f":"IF(INTRO!$E$43=\"Non endémique\",\" \", IF(COUNTRY_INFO!A15=0,\" \",COUNTRY_INFO!A15))","v":"GUINEE EQUATORIALE"},{"$f":"IF(INTRO!$E$43=\"Non endémique\",\" \", IF(COUNTRY_INFO!B15=0,\" \",COUNTRY_INFO!B15))","v":"Centro Sur"},{"$f":"IF(INTRO!$E$43=\"Non endémique\",\" \", IF(COUNTRY_INFO!C15=0,\" \",COUNTRY_INFO!C15))","v":"Evinayong"},{"$f":"IF(INTRO!$E$43=\"Non endémique\", 0, IF(COUNTRY_INFO!$K15>0, IF(COUNTRY_INFO!$K15=4, 0, IF(COUNTRY_INFO!$K15=1, COUNTRY_INFO!$F15*0.33, IF(COUNTRY_INFO!$K15=2, COUNTRY_INFO!$F15*0.5, COUNTRY_INFO!$F15))), 0))","v":4546.41},{"$f":"IF(INTRO!$E$43=\"Non endémique\", 0, IF(COUNTRY_INFO!$K15>0, IF(COUNTRY_INFO!$K15=4, 0, IF(COUNTRY_INFO!$K15=1, 0, IF(COUNTRY_INFO!$K15=2, COUNTRY_INFO!$G15*0.2, COUNTRY_INFO!$G15))), 0))","v":0},4546.41,{"$f":"IF(INTRO!$E$43=\"Non endémique\", \"Non requis\", COUNTRY_INFO!T15)","v":0},null,{"$f":"IF($D15=0,0,IF(AND($G15>0,$H15<>\"Oui\"),D15,IF(AND($G15>0,$H15=\"Oui\"),COUNTRY_INFO!$F15,0)))","v":0},null,0,0,0,0,0,null,0,0]
[{"$f":"IF(INTRO!$E$43=\"Non endémique\",\" \", IF(COUNTRY_INFO!A16=0,\" \",COUNTRY_INFO!A16))","v":"GUINEE EQUATORIALE"},{"$f":"IF(INTRO!$E$43=\"Non endémique\",\" \", IF(COUNTRY_INFO!B16=0,\" \",COUNTRY_INFO!B16))","v":"Centro Sur"},{"$f":"IF(INTRO!$E$43=\"Non endémique\",\" \", IF(COUNTRY_INFO!C16=0,\" \",COUNTRY_INFO!C16))","v":"Niefang"},{"$f":"IF(INTRO!$E$43=\"Non endémique\", 0, IF(COUNTRY_INFO!$K16>0, IF(COUNTRY_INFO!$K16=4, 0, IF(COUNTRY_INFO!$K16=1, COUNTRY_INFO!$F16*0.33, IF(COUNTRY_INFO!$K16=2, COUNTRY_INFO!$F16*0.5, COUNTRY_INFO!$F16))), 0))","v":5824.5},{"$f":"IF(INTRO!$E$43=\"Non endémique\", 0, IF(COUNTRY_INFO!$K16>0, IF(COUNTRY_INFO!$K16=4, 0, IF(COUNTRY_INFO!$K16=1, 0, IF(COUNTRY_INFO!$K16=2, COUNTRY_INFO!$G16*0.2, COUNTRY_INFO!$G16))), 0))","v":0},5824.5,{"$f":"IF(INTRO!$E$43=\"Non endémique\", \"Non requis\", COUNTRY_INFO!T16)","v":0},null,{"$f":"IF($D16=0,0,IF(AND($G16>0,$H16<>\"Oui\"),D16,IF(AND($G16>0,$H16=\"Oui\"),COUNTRY_INFO!$F16,0)))","v":0},null,0,0,0,0,0,null,0,0]
[{"$f":"IF(INTRO!$E$43=\"Non endémique\",\" \", IF(COUNTRY_INFO!A17=0,\" \",COUNTRY_INFO!A17))","v":"GUINEE EQUATORIALE"},{"$f":"IF(INTRO!$E$43=\"Non endémique\",\" \", IF(COUNTRY_INFO!B17=0,\" \",COUNTRY_INFO!B17))","v":"Kientem"},{"$f":"IF(INTRO!$E$43=\"Non endémique\",\" \", IF(COUNTRY_INFO!C17=0,\" \",COUNTRY_INFO!C17))","v":"Ebebiyin"},{"$f":"IF(INTRO!$E$43=\"Non endémique\", 0, IF(COUNTRY_INFO!$K17>0, IF(COUNTRY_INFO!$K17=4, 0, IF(COUNTRY_INFO!$K17=1, COUNTRY_INFO!$F17*0.33, IF(COUNTRY_INFO!$K17=2, COUNTRY_INFO!$F17*0.5, COUNTRY_INFO!$F17))), 0))","v":9699.36},{"$f":"IF(INTRO!$E$43=\"Non endémique\", 0, IF(COUNTRY_INFO!$K17>0, IF(COUNTRY_INFO!$K17=4, 0, IF(COUNTRY_INFO!$K17=1, 0, IF(COUNTRY_INFO!$K17=2, COUNTRY_INFO!$G17*0.2, COUNTRY_INFO!$G17))), 0))","v":0},9699.36,{"$f":"IF(INTRO!$E$43=\"Non endémique\", \"Non requis\", COUNTRY_INFO!T17)","v":0},null,{"$f":"IF($D17=0,0,IF(AND($G17>0,$H17<>\"Oui\"),D17,IF(AND($G17>0,$H17=\"Oui\"),COUNTRY_INFO!$F17,0)))","v":0},null,0,0,0,0,0,null,0,0]
[{"$f":"IF(INTRO!$E$43=\"Non endémique\",\" \", IF(COUNTRY_INFO!A18=0,\" \",COUNTRY_INFO!A18))","v":"GUINEE EQUATORIALE"},{"$f":"IF(INTRO!$E$43=\"Non endémique\",\" \", IF(COUNTRY_INFO!B18=0,\" \",COUNTRY_INFO!B18))","v":"Kientem"},{"$f":"IF(INTRO!$E$43=\"Non endémique\",\" \", IF(COUNTRY_INFO!C18=0,\" \",COUNTRY_INFO!C18))","v":"Micomiseng"},{"$f":"IF(INTRO!$E$43=\"Non endémique\", 0, IF(COUNTRY_INFO!$K18>0, IF(COUNTRY_INFO!$K18=4, 0, IF(COUNTRY_INFO!$K18=1, COUNTRY_INFO!$F18*0.33, IF(COUNTRY_INFO!$K18=2, COUNTRY_INFO!$F18*0.5, COUNTRY_INFO!$F18))), 0))","v":6377.25},{"$f":"IF(INTRO!$E$43=\"Non endémique\", 0, IF(COUNTRY_INFO!$K18>0, IF(COUNTRY_INFO!$K18=4, 0, IF(COUNTRY_INFO!$K18=1, 0, IF(COUNTRY_INFO!$K18=2, COUNTRY_INFO!$G18*0.2, COUNTRY_INFO!$G18))), 0))","v":0},6377.25,{"$f":"IF(INTRO!$E$43=\"Non endémique\", \"Non requis\", COUNTRY_INFO!T18)","v":0},null,{"$f":"IF($D18=0,0,IF(AND($G18>0,$H18<>\"Oui\"),D18,IF(AND($G18>0,$H18=\"Oui\"),COUNTRY_INFO!$F18,0)))","v":0},null,0,0,0,0,0,null,0,0]
[{"$f":"IF(INTRO!$E$43=\"Non endémique\",\" \", IF(COUNTRY_INFO!A19=0,\" \",COUNTRY_INFO!A19))","v":"GUINEE EQUATORIALE"},{"$f":"IF(INTRO!$E$43=\"Non endémique\",\" \", IF(COUNTRY_INFO!B19=0,\" \",COUNTRY_INFO!B19))","v":"Kientem"},{"$f":"IF(INTRO!$E$43=\"Non endémique\",\" \", IF(COUNTRY_INFO!C19=0,\" \",COUNTRY_INFO!C19))","v":"Nsoknsomo"},{"$f":"IF(INTRO!$E$43=\"Non endémique\", 0, IF(COUNTRY_INFO!$K19>0, IF(COUNTRY_INFO!$K19=4, 0, IF(COUNTRY_INFO!$K19=1, COUNTRY_INFO!$F19*0.33, IF(COUNTRY_INFO!$K19=2, COUNTRY_INFO!$F19*0.5, COUNTRY_INFO!$F19))), 0))","v":3676.53},{"$f":"IF(INTRO!$E$43=\"Non endémique\", 0, IF(COUNTRY_INFO!$K19>0, IF(COUNTRY_INFO!$K19=4, 0, IF(COUNTRY_INFO!$K19=1, 0, IF(COUNTRY_INFO!$K19=2, COUNTRY_INFO!$G19*0.2, COUNTRY_INFO!$G19))), 0))","v":0},3676.53,{"$f":"IF(INTRO!$E$43=\"Non endémique\", \"Non requis\", COUNTRY_INFO!T19)","v":0},null,{"$f":"IF($D19=0,0,IF(AND($G19>0,$H19<>\"Oui\"),D19,IF(AND($G19>0,$H19=\"Oui\"),COUNTRY_INFO!$F19,0)))","v":0},null,0,0,0,0,0,null,0,0]
[{"$f":"IF(INTRO!$E$43=\"Non endémique\",\" \", IF(COUNTRY_INFO!A20=0,\" \",COUNTRY_INFO!A20))","v":"GUINEE EQUATORIALE"},{"$f":"IF(INTRO!$E$43=\"Non endémique\",\" \", IF(COUNTRY_INFO!B20=0,\" \",COUNTRY_INFO!B20))","v":"Litoral"},{"$f":"IF(INTRO!$E$43=\"Non endémique\",\" \", IF(COUNTRY_INFO!C20=0,\" \",COUNTRY_INFO!C20))","v":"Bata"},{"$f":"IF(INTRO!$E$43=\"Non endémique\", 0, IF(COUNTRY_INFO!$K20>0, IF(COUNTRY_INFO!$K20=4, 0, IF(COUNTRY_INFO!$K20=1, COUNTRY_INFO!$F20*0.33, IF(COUNTRY_INFO!$K20=2, COUNTRY_INFO!$F20*0.5, COUNTRY_INFO!$F20))), 0))","v":23034.5},{"$f":"IF(INTRO!$E$43=\"Non endémique\", 0, IF(COUNTRY_INFO!$K20>0, IF(COUNTRY_INFO!$K20=4, 0, IF(COUNTRY_INFO!$K20=1, 0, IF(COUNTRY_INFO!$K20=2, COUNTRY_INFO!$G20*0.2, COUNTRY_INFO!$G20))), 0))","v":25713.200000000001},48747.7,{"$f":"IF(INTRO!$E$43=\"Non endémique\", \"Non requis\", COUNTRY_INFO!T20)","v":0},null,{"$f":"IF($D20=0,0,IF(AND($G20>0,$H20<>\"Oui\"),D20,IF(AND($G20>0,$H20=\"Oui\"),COUNTRY_INFO!$F20,0)))","v":0},null,0,0,0,0,0,null,0,0]
[{"$f":"IF(INTRO!$E$43=\"Non endémique\",\" \", IF(COUNTRY_INFO!A21=0,\" \",COUNTRY_INFO!A21))","v":"GUINEE EQUATORIALE"},{"$f":"IF(INTRO!$E$43=\"Non endémique\",\" \", IF(COUNTRY_INFO!B21=0,\" \",COUNTRY_INFO!B21))","v":"Litoral"},{"$f":"IF(INTRO!$E$43=\"Non endémique\",\" \", IF(COUNTRY_INFO!C21=0,\" \",COUNTRY_INFO!C21))","v":"Kogo"},{"$f":"IF(INTRO!$E$43=\"Non endémique\", 0, IF(COUNTRY_INFO!$K21>0, IF(COUNTRY_INFO!$K21=4, 0, IF(COUNTRY_INFO!$K21=1, COUNTRY_INFO!$F21*0.33, IF(COUNTRY_INFO!$K21=2, COUNTRY_INFO!$F21*0.5, COUNTRY_INFO!$F21))), 0))","v":3109.92},{"$f":"IF(INTRO!$E$43=\"Non endémique\", 0, IF(COUNTRY_INFO!$K21>0, IF(COUNTRY_INFO!$K21=4, 0, IF(COUNTRY_INFO!$K21=1, 0, IF(COUNTRY_INFO!$K21=2, COUNTRY_INFO!$G21*0.2, COUNTRY_INFO!$G21))), 0))","v":0},3109.92,{"$f":"IF(INTRO!$E$43=\"Non endémique\", \"Non requis\", COUNTRY_INFO!T21)","v":0},null,{"$f":"IF($D21=0,0,IF(AND($G21>0,$H21<>\"Oui\"),D21,IF(AND($G21>0,$H21=\"Oui\"),COUNTRY_INFO!$F21,0)))","v":0},null,0,0,0,0,0,null,0,0]
[{"$f":"IF(INTRO!$E$43=\"Non endémique\",\" \", IF(COUNTRY_INFO!A22=0,\" \",COUNTRY_INFO!A22))","v":"GUINEE EQUATORIALE"},{"$f":"IF(INTRO!$E$43=\"Non endémique\",\" \", IF(COUNTRY_INFO!B22=0,\" \",COUNTRY_INFO!B22))","v":"Litoral"},{"$f":"IF(INTRO!$E$43=\"Non endémique\",\" \", IF(COUNTRY_INFO!C22=0,\" \",COUNTRY_INFO!C22))","v":"Mbini"},{"$f":"IF(INTRO!$E$43=\"Non endémique\", 0, IF(COUNTRY_INFO!$K22>0, IF(COUNTRY_INFO!$K22=4, 0, IF(COUNTRY_INFO!$K22=1, COUNTRY_INFO!$F22*0.33, IF(COUNTRY_INFO!$K22=2, COUNTRY_INFO!$F22*0.5, COUNTRY_INFO!$F22))), 0))","v":2987.82},{"$f":"IF(INTRO!$E$43=\"Non endémique\", 0, IF(COUNTRY_INFO!$K22>0, IF(COUNTRY_INFO!$K22=4, 0, IF(COUNTRY_INFO!$K22=1, 0, IF(COUNTRY_INFO!$K22=2, COUNTRY_INFO!$G22*0.2, COUNTRY_INFO!$G22))), 0))","v":0},2987.82,{"$f":"IF(INTRO!$E$43=\"Non endémique\", \"Non requis\", COUNTRY_INFO!T22)","v":0},null,{"$f":"IF($D22=0,0,IF(AND($G22>0,$H22<>\"Oui\"),D22,IF(AND($G22>0,$H22=\"Oui\"),COUNTRY_INFO!$F22,0)))","v":0},null,0,0,0,0,0,null,0,0]
[{"$f":"IF(INTRO!$E$43=\"Non endémique\",\" \", IF(COUNTRY_INFO!A23=0,\" \",COUNTRY_INFO!A23))","v":"GUINEE EQUATORIALE"},{"$f":"IF(INTRO!$E$43=\"Non endémique\",\" \", IF(COUNTRY_INFO!B23=0,\" \",COUNTRY_INFO!B23))","v":"Welenzas"},{"$f":"IF(INTRO!$E$43=\"Non endémique\",\" \", IF(COUNTRY_INFO!C23=0,\" \",COUNTRY_INFO!C23))","v":"Akonibe"},{"$f":"IF(INTRO!$E$43=\"Non endémique\", 0, IF(COUNTRY_INFO!$K23>0, IF(COUNTRY_INFO!$K23=4, 0, IF(COUNTRY_INFO!$K23=1, COUNTRY_INFO!$F23*0.33, IF(COUNTRY_INFO!$K23=2, COUNTRY_INFO!$F23*0.5, COUNTRY_INFO!$F23))), 0))","v":1930.17},{"$f":"IF(INTRO!$E$43=\"Non endémique\", 0, IF(COUNTRY_INFO!$K23>0, IF(COUNTRY_INFO!$K23=4, 0, IF(COUNTRY_INFO!$K23=1, 0, IF(COUNTRY_INFO!$K23=2, COUNTRY_INFO!$G23*0.2, COUNTRY_INFO!$G23))), 0))","v":0},1930.17,{"$f":"IF(INTRO!$E$43=\"Non endémique\", \"Non requis\", COUNTRY_INFO!T23)","v":0},null,{"$f":"IF($D23=0,0,IF(AND($G23>0,$H23<>\"Oui\"),D23,IF(AND($G23>0,$H23=\"Oui\"),COUNTRY_INFO!$F23,0)))","v":0},null,0,0,0,0,0,null,0,0]
[{"$f":"IF(INTRO!$E$43=\"Non endémique\",\" \", IF(COUNTRY_INFO!A24=0,\" \",COUNTRY_INFO!A24))","v":"GUINEE EQUATORIALE"},{"$f":"IF(INTRO!$E$43=\"Non endémique\",\" \", IF(COUNTRY_INFO!B24=0,\" \",COUNTRY_INFO!B24))","v":"Welenzas"},{"$f":"IF(INTRO!$E$43=\"Non endémique\",\" \", IF(COUNTRY_INFO!C24=0,\" \",COUNTRY_INFO!C24))","v":"Anisok"},{"$f":"IF(INTRO!$E$43=\"Non endémique\", 0, IF(COUNTRY_INFO!$K24>0, IF(COUNTRY_INFO!$K24=4, 0, IF(COUNTRY_INFO!$K24=1, COUNTRY_INFO!$F24*0.33, IF(COUNTRY_INFO!$K24=2, COUNTRY_INFO!$F24*0.5, COUNTRY_INFO!$F24))), 0))","v":0},{"$f":"IF(INTRO!$E$43=\"Non endémique\", 0, IF(COUNTRY_INFO!$K24>0, IF(COUNTRY_INFO!$K24=4, 0, IF(COUNTRY_INFO!$K24=1, 0, IF(COUNTRY_INFO!$K24=2, COUNTRY_INFO!$G24*0.2, COUNTRY_INFO!$G24))), 0))","v":0},0,{"$f":"IF(INTRO!$E$43=\"Non endémique\", \"Non requis\", COUNTRY_INFO!T24)","v":0},null,{"$f":"IF($D24=0,0,IF(AND($G24>0,$H24<>\"Oui\"),D24,IF(AND($G24>0,$H24=\"Oui\"),COUNTRY_INFO!$F24,0)))","v":0},null,0,0,0,0,0,null,0,0]
[{"$f":"IF(INTRO!$E$43=\"Non endémique\",\" \", IF(COUNTRY_INFO!A25=0,\" \",COUNTRY_INFO!A25))","v":"GUINEE EQUATORIALE"},{"$f":"IF(INTRO!$E$43=\"Non endémique\",\" \", IF(COUNTRY_INFO!B25=0,\" \",COUNTRY_INFO!B25))","v":"Welenzas"},{"$f":"IF(INTRO!$E$43=\"Non endémique\",\" \", IF(COUNTRY_INFO!C25=0,\" \",COUNTRY_INFO!C25))","v":"Mongomo"},{"$f":"IF(INTRO!$E$43=\"Non endémique\", 0, IF(COUNTRY_INFO!$K25>0, IF(COUNTRY_INFO!$K25=4, 0, IF(COUNTRY_INFO!$K25=1, COUNTRY_INFO!$F25*0.33, IF(COUNTRY_INFO!$K25=2, COUNTRY_INFO!$F25*0.5, COUNTRY_INFO!$F25))), 0))","v":0},{"$f":"IF(INTRO!$E$43=\"Non endémique\", 0, IF(COUNTRY_INFO!$K25>0, IF(COUNTRY_INFO!$K25=4, 0, IF(COUNTRY_INFO!$K25=1, 0, IF(COUNTRY_INFO!$K25=2, COUNTRY_INFO!$G25*0.2, COUNTRY_INFO!$G25))), 0))","v":0},0,{"$f":"IF(INTRO!$E$43=\"Non endémique\", \"Non requis\", COUNTRY_INFO!T25)","v":0},null,{"$f":"IF($D25=0,0,IF(AND($G25>0,$H25<>\"Oui\"),D25,IF(AND($G25>0,$H25=\"Oui\"),COUNTRY_INFO!$F25,0)))","v":0},null,0,0,0,0,0,null,0,0]
[{"$f":"IF(INTRO!$E$43=\"Non endémique\",\" \", IF(COUNTRY_INFO!A26=0,\" \",COUNTRY_INFO!A26))","v":"GUINEE EQUATORIALE"},{"$f":"IF(INTRO!$E$43=\"Non endémique\",\" \", IF(COUNTRY_INFO!B26=0,\" \",COUNTRY_INFO!B26))","v":"Welenzas"},{"$f":"IF(INTRO!$E$43=\"Non endémique\",\" \", IF(COUNTRY_INFO!C26=0,\" \",COUNTRY_INFO!C26))","v":"Nsork"},{"$f":"IF(INTRO!$E$43=\"Non endémique\", 0, IF(COUNTRY_INFO!$K26>0, IF(COUNTRY_INFO!$K26=4, 0, IF(COUNTRY_INFO!$K26=1, COUNTRY_INFO!$F26*0.33, IF(COUNTRY_INFO!$K26=2, COUNTRY_INFO!$F26*0.5, COUNTRY_INFO!$F26))), 0))","v":1495.5600000000002},{"$f":"IF(INTRO!$E$43=\"Non endémique\", 0, IF(COUNTRY_INFO!$K26>0, IF(COUNTRY_INFO!$K26=4, 0, IF(COUNTRY_INFO!$K26=1, 0, IF(COUNTRY_INFO!$K26=2, COUNTRY_INFO!$G26*0.2, COUNTRY_INFO!$G26))), 0))","v":0},1495.5600000000002,{"$f":"IF(INTRO!$E$43=\"Non endémique\", \"Non requis\", COUNTRY_INFO!T26)","v":0},null,{"$f":"IF($D26=0,0,IF(AND($G26>0,$H26<>\"Oui\"),D26,IF(AND($G26>0,$H26=\"Oui\"),COUNTRY_INFO!$F26,0)))","v":0},null,0,0,0,0,0,null,0,0]

{"sheet":"IVM","index":4,"n_rows":26,"n_cols":17,"rows_kept":26,"cut":false,"hidden":false,"merged":[[5,10,5,16],[6,15,7,15],[6,16,7,16],[6,14,7,14],[6,10,7,10],[6,11,7,11],[6,12,7,12],[6,13,7,13],[5,0,5,2],[5,4,5,5],[5,6,5,9],[6,6,7,6],[3,0,3,2],[3,4,3,5],[6,3,7,3],[6,4,7,4],[6,5,7,5],[6,0,7,0],[6,1,7,1],[6,2,7,2],[6,7,6,9]]}
["Ivermectine (IVM)"]
["Structure administrative, population ciblée par groupe d'âge, plan de traitement et information sur les comprimés"]
[]
["TOTAL",null,null,{"$f":"SUM(D$9:D$1000)","v":806214},null,null,{"$f":"SUM(G$9:G$1000)","v":0},0,0,0,0,0,0,0,0,0,0]
[]
["Structure administrative du pays",null,null,null,"Plan de traitement",null,"Population cible",null,null,null,"Ivermectine (IVM)"]
["Pays","Région/Département","District","Population nécessitant un traitement avec IVM","FL","Oncho","FL","Oncho",null,null,"FL uniquement","Oncho uniquement","FL+Oncho","Total requis","Reste en stock","Comprimés devant être fournis","Flacons (3mg)\n500 comprimés"]
[null,null,null,null,null,null,null,"dans le district","dans les village","total"]
[{"$f":"IF(INTRO!$E$39=\"Non endémique\",\" \",IF(COUNTRY_INFO!A9=0,\" \",COUNTRY_INFO!A9))","v":"GUINEE EQUATORIALE"},{"$f":"IF(INTRO!$E$39=\"Non endémique\",\" \",IF(COUNTRY_INFO!B9=0,\" \",COUNTRY_INFO!B9))","v":"Annobon"},{"$f":"IF(INTRO!$E$39=\"Non endémique\",\" \",IF(COUNTRY_INFO!C9=0,\" \",COUNTRY_INFO!C9))","v":"Annonbon"},{"$f":"IF(INTRO!$E$39=\"Non endémique\",0,IF(INTRO!$E$39=\"Endémique mais pas de CP\",IF(COUNTRY_INFO!$H9=1,COUNTRY_INFO!F9+COUNTRY_INFO!G9,0),IF(COUNTRY_INFO!$H9=1,COUNTRY_INFO!F9+COUNTRY_INFO!G9,IF(COUNTRY_INFO!$I9=1,IF(COUNTRY_INFO!N9>=(COUNTRY_INFO!F9+COUNTRY_INFO!G9),COUNTRY_INFO!F9+COUNTRY_INFO!G9,COUNTRY_INFO!$N9),0))))","v":0},{"$f":"IF(AND(INTRO!$E$39=\"Non endémique\",INTRO!$E$37=\"Non endémique\"),\"Non requis\",IF(INTRO!$E$39=\"Non endémique\",\"Traiter avec DEC\",COUNTRY_INFO!Q9))","v":0},{"$f":"IF(INTRO!$E$39<>\"Non endémique\",COUNTRY_INFO!R9,\"Non requis\")","v":0},{"$f":"IF(COUNTRY_INFO!H9=1, IF($E9=1,IF(ALB_MBD!$J9<>\" \",COUNTRY_INFO!F9+COUNTRY_INFO!G9-ALB_MBD!$J9,COUNTRY_INFO!F9+COUNTRY_INFO!G9), 0),0)","v":0},{"$f":"IF(INTRO!$E$39<>\"Endémique\",0, IF(AND(COUNTRY_INFO!$I9=1,$F9<>0),IF(COUNTRY_INFO!N9>=(COUNTRY_INFO!F9+COUNTRY_INFO!G9),COUNTRY_INFO!F9+COUNTRY_INFO!G9,COUNTRY_INFO!$N9), 0))","v":0},null,{"$f":"IF(I9=0,H9,IF(I9>H9,H9,I9))","v":0},{"$f":"IF(G9<J9,0,IF($E9=1, (G9-J9)*2.8, 0))","v":0},{"$f":"IF($E9<$F9, J9*(F9-E9)*2.8, 0)","v":0},{"$f":"IF(AND($E9=1, $F9<>0), J9*2.8, 0)","v":0},{"$f":"SUM(K9:M9)","v":0},null,{"$f":"IF($N9>$O9,$N9-$O9,0)","v":0},{"$f":"ROUNDUP($N9/500,0)","v":0}]
[{"$f":"IF(INTRO!$E$39=\"Non endémique\",\" \",IF(COUNTRY_INFO!A10=0,\" \",COUNTRY_INFO!A10))","v":"GUINEE EQUATORIALE"},{"$f":"IF(INTRO!$E$39=\"Non endémique\",\" \",IF(COUNTRY_INFO!B10=0,\" \",COUNTRY_INFO!B10))","v":"Bioko Norte"},{"$f":"IF(INTRO!$E$39=\"Non endémique\",\" \",IF(COUNTRY_INFO!C10=0,\" \",COUNTRY_INFO!C10))","v":"Baney"},{"$f":"IF(INTRO!$E$39=\"Non endémique\",0,IF(INTRO!$E$39=\"Endémique mais pas de CP\",IF(COUNTRY_INFO!$H10=1,COUNTRY_INFO!F10+COUNTRY_INFO!G10,0),IF(COUNTRY_INFO!$H10=1,COUNTRY_INFO!F10+COUNTRY_INFO!G10,IF(COUNTRY_INFO!$I10=1,IF(COUNTRY_INFO!N10>=(COUNTRY_INFO!F10+COUNTRY_INFO!G10),COUNTRY_INFO!F10+COUNTRY_INFO!G10,COUNTRY_INFO!$N10),0))))","v":26164},{"$f":"IF(AND(INTRO!$E$39=\"Non endémique\",INTRO!$E$37=\"Non endémique\"),\"Non requis\",IF(INTRO!$E$39=\"Non endémique\",\"Traiter avec DEC\",COUNTRY_INFO!Q10))","v":1},{"$f":"IF(INTRO!$E$39<>\"Non endémique\",COUNTRY_INFO!R10,\"Non requis\")","v":0},{"$f":"IF(COUNTRY_INFO!H10=1, IF($E10=1,IF(ALB_MBD!$J10<>\" \",COUNTRY_INFO!F10+COUNTRY_INFO!G10-ALB_MBD!$J10,COUNTRY_INFO!F10+COUNTRY_INFO!G10), 0),0)","v":0},{"$f":"IF(INTRO!$E$39<>\"Endémique\",0, IF(AND(COUNTRY_INFO!$I10=1,$F10<>0),IF(COUNTRY_INFO!N10>=(COUNTRY_INFO!F10+COUNTRY_INFO!G10),COUNTRY_INFO!F10+COUNTRY_INFO!G10,COUNTRY_INFO!$N10), 0))","v":0},null,0,0,0,0,0,null,0,0]
[{"$f":"IF(INTRO!$E$39=\"Non endémique\",\" \",IF(COUNTRY_INFO!A11=0,\" \",COUNTRY_INFO!A11))","v":"GUINEE EQUATORIALE"},{"$f":"IF(INTRO!$E$39=\"Non endémique\",\" \",IF(COUNTRY_INFO!B11=0,\" \",COUNTRY_INFO!B11))","v":"Bioko Norte"},{"$f":"IF(INTRO!$E$39=\"Non endémique\",\" \",IF(COUNTRY_INFO!C11=0,\" \",COUNTRY_INFO!C11))","v":"Malabo"},{"$f":"IF(INTRO!$E$39=\"Non endémique\",0,IF(INTRO!$E$39=\"Endémique mais pas de CP\",IF(COUNTRY_INFO!$H11=1,COUNTRY_INFO!F11+COUNTRY_INFO!G11,0),IF(COUNTRY_INFO!$H11=1,COUNTRY_INFO!F11+COUNTRY_INFO!G11,IF(COUNTRY_INFO!$I11=1,IF(COUNTRY_INFO!N11>=(COUNTRY_INFO!F11+COUNTRY_INFO!G11),COUNTRY_INFO!F11+COUNTRY_INFO!G11,COUNTRY_INFO!$N11),0))))","v":0},{"$f":"IF(AND(INTRO!$E$39=\"Non endémique\",INTRO!$E$37=\"Non endémique\"),\"Non requis\",IF(INTRO!$E$39=\"Non endémique\",\"Traiter avec DEC\",COUNTRY_INFO!Q11))","v":0},{"$f":"IF(INTRO!$E$39<>\"Non endémique\",COUNTRY_INFO!R11,\"Non requis\")","v":0},{"$f":"IF(COUNTRY_INFO!H11=1, IF($E11=1,IF(ALB_MBD!$J11<>\" \",COUNTRY_INFO!F11+COUNTRY_INFO!G11-ALB_MBD!$J11,COUNTRY_INFO!F11+COUNTRY_INFO!G11), 0),0)","v":0},{"$f":"IF(INTRO!$E$39<>\"Endémique\",0, IF(AND(COUNTRY_INFO!$I11=1,$F11<>0),IF(COUNTRY_INFO!N11>=(COUNTRY_INFO!F11+COUNTRY_INFO!G11),COUNTRY_INFO!F11+COUNTRY_INFO!G11,COUNTRY_INFO!$N11), 0))","v":0},null,0,0,0,0,0,null,0,0]
[{"$f":"IF(INTRO!$E$39=\"Non endémique\",\" \",IF(COUNTRY_INFO!A12=0,\" \",COUNTRY_INFO!A12))","v":"GUINEE EQUATORIALE"},{"$f":"IF(INTRO!$E$39=\"Non endémique\",\" \",IF(COUNTRY_INFO!B12=0,\" \",COUNTRY_INFO!B12))","v":"Bioko Sur"},{"$f":"IF(INTRO!$E$39=\"Non endémique\",\" \",IF(COUNTRY_INFO!C12=0,\" \",COUNTRY_INFO!C12))","v":"Luba"},{"$f":"IF(INTRO!$E$39=\"Non endémique\",0,IF(INTRO!$E$39=\"Endémique mais pas de CP\",IF(COUNTRY_INFO!$H12=1,COUNTRY_INFO!F12+COUNTRY_INFO!G12,0),IF(COUNTRY_INFO!$H12=1,COUNTRY_INFO!F12+COUNTRY_INFO!G12,IF(COUNTRY_INFO!$I12=1,IF(COUNTRY_INFO!N12>=(COUNTRY_INFO!F12+COUNTRY_INFO!G12),COUNTRY_INFO!F12+COUNTRY_INFO!G12,COUNTRY_INFO!$N12),0))))","v":0},{"$f":"IF(AND(INTRO!$E$39=\"Non endémique\",INTRO!$E$37=\"Non endémique\"),\"Non requis\",IF(INTRO!$E$39=\"Non endémique\",\"Traiter avec DEC\",COUNTRY_INFO!Q12))","v":0},{"$f":"IF(INTRO!$E$39<>\"Non endémique\",COUNTRY_INFO!R12,\"Non requis\")","v":0},{"$f":"IF(COUNTRY_INFO!H12=1, IF($E12=1,IF(ALB_MBD!$J12<>\" \",COUNTRY_INFO!F12+COUNTRY_INFO!G12-ALB_MBD!$J12,COUNTRY_INFO!F12+COUNTRY_INFO!G12), 0),0)","v":0},{"$f":"IF(INTRO!$E$39<>\"Endémique\",0, IF(AND(COUNTRY_INFO!$I12=1,$F12<>0),IF(COUNTRY_INFO!N12>=(COUNTRY_INFO!F12+COUNTRY_INFO!G12),COUNTRY_INFO!F12+COUNTRY_INFO!G12,COUNTRY_INFO!$N12), 0))","v":0},null,0,0,0,0,0,null,0,0]
[{"$f":"IF(INTRO!$E$39=\"Non endémique\",\" \",IF(COUNTRY_INFO!A13=0,\" \",COUNTRY_INFO!A13))","v":"GUINEE EQUATORIALE"},{"$f":"IF(INTRO!$E$39=\"Non endémique\",\" \",IF(COUNTRY_INFO!B13=0,\" \",COUNTRY_INFO!B13))","v":"Bioko Sur"},{"$f":"IF(INTRO!$E$39=\"Non endémique\",\" \",IF(COUNTRY_INFO!C13=0,\" \",COUNTRY_INFO!C13))","v":"Riaba"},{"$f":"IF(INTRO!$E$39=\"Non endémique\",0,IF(INTRO!$E$39=\"Endémique mais pas de CP\",IF(COUNTRY_INFO!$H13=1,COUNTRY_INFO!F13+COUNTRY_INFO!G13,0),IF(COUNTRY_INFO!$H13=1,COUNTRY_INFO!F13+COUNTRY_INFO!G13,IF(COUNTRY_INFO!$I13=1,IF(COUNTRY_INFO!N13>=(COUNTRY_INFO!F13+COUNTRY_INFO!G13),COUNTRY_INFO!F13+COUNTRY_INFO!G13,COUNTRY_INFO!$N13),0))))","v":8137},{"$f":"IF(AND(INTRO!$E$39=\"Non endémique\",INTRO!$E$37=\"Non endémique\"),\"Non requis\",IF(INTRO!$E$39=\"Non endémique\",\"Traiter avec DEC\",COUNTRY_INFO!Q13))","v":1},{"$f":"IF(INTRO!$E$39<>\"Non endémique\",COUNTRY_INFO!R13,\"Non requis\")","v":0},{"$f":"IF(COUNTRY_INFO!H13=1, IF($E13=1,IF(ALB_MBD!$J13<>\" \",COUNTRY_INFO!F13+COUNTRY_INFO!G13-ALB_MBD!$J13,COUNTRY_INFO!F13+COUNTRY_INFO!G13), 0),0)","v":0},{"$f":"IF(INTRO!$E$39<>\"Endémique\",0, IF(AND(COUNTRY_INFO!$I13=1,$F13<>0),IF(COUNTRY_INFO!N13>=(COUNTRY_INFO!F13+COUNTRY_INFO!G13),COUNTRY_INFO!F13+COUNTRY_INFO!G13,COUNTRY_INFO!$N13), 0))","v":0},null,0,0,0,0,0,null,0,0]
[{"$f":"IF(INTRO!$E$39=\"Non endémique\",\" \",IF(COUNTRY_INFO!A14=0,\" \",COUNTRY_INFO!A14))","v":"GUINEE EQUATORIALE"},{"$f":"IF(INTRO!$E$39=\"Non endémique\",\" \",IF(COUNTRY_INFO!B14=0,\" \",COUNTRY_INFO!B14))","v":"Centro Sur"},{"$f":"IF(INTRO!$E$39=\"Non endémique\",\" \",IF(COUNTRY_INFO!C14=0,\" \",COUNTRY_INFO!C14))","v":"Acurenam"},{"$f":"IF(INTRO!$E$39=\"Non endémique\",0,IF(INTRO!$E$39=\"Endémique mais pas de CP\",IF(COUNTRY_INFO!$H14=1,COUNTRY_INFO!F14+COUNTRY_INFO!G14,0),IF(COUNTRY_INFO!$H14=1,COUNTRY_INFO!F14+COUNTRY_INFO!G14,IF(COUNTRY_INFO!$I14=1,IF(COUNTRY_INFO!N14>=(COUNTRY_INFO!F14+COUNTRY_INFO!G14),COUNTRY_INFO!F14+COUNTRY_INFO!G14,COUNTRY_INFO!$N14),0))))","v":28445},{"$f":"IF(AND(INTRO!$E$39=\"Non endémique\",INTRO!$E$37=\"Non endémique\"),\"Non requis\",IF(INTRO!$E$39=\"Non endémique\",\"Traiter avec DEC\",COUNTRY_INFO!Q14))","v":1},{"$f":"IF(INTRO!$E$39<>\"Non endémique\",COUNTRY_INFO!R14,\"Non requis\")","v":0},{"$f":"IF(COUNTRY_INFO!H14=1, IF($E14=1,IF(ALB_MBD!$J14<>\" \",COUNTRY_INFO!F14+COUNTRY_INFO!G14-ALB_MBD!$J14,COUNTRY_INFO!F14+COUNTRY_INFO!G14), 0),0)","v":0},{"$f":"IF(INTRO!$E$39<>\"Endémique\",0, IF(AND(COUNTRY_INFO!$I14=1,$F14<>0),IF(COUNTRY_INFO!N14>=(COUNTRY_INFO!F14+COUNTRY_INFO!G14),COUNTRY_INFO!F14+COUNTRY_INFO!G14,COUNTRY_INFO!$N14), 0))","v":0},null,0,0,0,0,0,null,0,0]
[{"$f":"IF(INTRO!$E$39=\"Non endémique\",\" \",IF(COUNTRY_INFO!A15=0,\" \",COUNTRY_INFO!A15))","v":"GUINEE EQUATORIALE"},{"$f":"IF(INTRO!$E$39=\"Non endémique\",\" \",IF(COUNTRY_INFO!B15=0,\" \",COUNTRY_INFO!B15))","v":"Centro Sur"},{"$f":"IF(INTRO!$E$39=\"Non endémique\",\" \",IF(COUNTRY_INFO!C15=0,\" \",COUNTRY_INFO!C15))","v":"Evinayong"},{"$f":"IF(INTRO!$E$39=\"Non endémique\",0,IF(INTRO!$E$39=\"Endémique mais pas de CP\",IF(COUNTRY_INFO!$H15=1,COUNTRY_INFO!F15+COUNTRY_INFO!G15,0),IF(COUNTRY_INFO!$H15=1,COUNTRY_INFO!F15+COUNTRY_INFO!G15,IF(COUNTRY_INFO!$I15=1,IF(COUNTRY_INFO!N15>=(COUNTRY_INFO!F15+COUNTRY_INFO!G15),COUNTRY_INFO!F15+COUNTRY_INFO!G15,COUNTRY_INFO!$N15),0))))","v":52224},{"$f":"IF(AND(INTRO!$E$39=\"Non endémique\",INTRO!$E$37=\"Non endémique\"),\"Non requis\",IF(INTRO!$E$39=\"Non endémique\",\"Traiter avec DEC\",COUNTRY_INFO!Q15))","v":1},{"$f":"IF(INTRO!$E$39<>\"Non endémique\",COUNTRY_INFO!R15,\"Non requis\")","v":0},{"$f":"IF(COUNTRY_INFO!H15=1, IF($E15=1,IF(ALB_MBD!$J15<>\" \",COUNTRY_INFO!F15+COUNTRY_INFO!G15-ALB_MBD!$J15,COUNTRY_INFO!F15+COUNTRY_INFO!G15), 0),0)","v":0},{"$f":"IF(INTRO!$E$39<>\"Endémique\",0, IF(AND(COUNTRY_INFO!$I15=1,$F15<>0),IF(COUNTRY_INFO!N15>=(COUNTRY_INFO!F15+COUNTRY_INFO!G15),COUNTRY_INFO!F15+COUNTRY_INFO!G15,COUNTRY_INFO!$N15), 0))","v":0},null,0,0,0,0,0,null,0,0]
[{"$f":"IF(INTRO!$E$39=\"Non endémique\",\" \",IF(COUNTRY_INFO!A16=0,\" \",COUNTRY_INFO!A16))","v":"GUINEE EQUATORIALE"},{"$f":"IF(INTRO!$E$39=\"Non endémique\",\" \",IF(COUNTRY_INFO!B16=0,\" \",COUNTRY_INFO!B16))","v":"Centro Sur"},{"$f":"IF(INTRO!$E$39=\"Non endémique\",\" \",IF(COUNTRY_INFO!C16=0,\" \",COUNTRY_INFO!C16))","v":"Niefang"},{"$f":"IF(INTRO!$E$39=\"Non endémique\",0,IF(INTRO!$E$39=\"Endémique mais pas de CP\",IF(COUNTRY_INFO!$H16=1,COUNTRY_INFO!F16+COUNTRY_INFO!G16,0),IF(COUNTRY_INFO!$H16=1,COUNTRY_INFO!F16+COUNTRY_INFO!G16,IF(COUNTRY_INFO!$I16=1,IF(COUNTRY_INFO!N16>=(COUNTRY_INFO!F16+COUNTRY_INFO!G16),COUNTRY_INFO!F16+COUNTRY_INFO!G16,COUNTRY_INFO!$N16),0))))","v":66905},{"$f":"IF(AND(INTRO!$E$39=\"Non endémique\",INTRO!$E$37=\"Non endémique\"),\"Non requis\",IF(INTRO!$E$39=\"Non endémique\",\"Traiter avec DEC\",COUNTRY_INFO!Q16))","v":1},{"$f":"IF(INTRO!$E$39<>\"Non endémique\",COUNTRY_INFO!R16,\"Non requis\")","v":0},{"$f":"IF(COUNTRY_INFO!H16=1, IF($E16=1,IF(ALB_MBD!$J16<>\" \",COUNTRY_INFO!F16+COUNTRY_INFO!G16-ALB_MBD!$J16,COUNTRY_INFO!F16+COUNTRY_INFO!G16), 0),0)","v":0},{"$f":"IF(INTRO!$E$39<>\"Endémique\",0, IF(AND(COUNTRY_INFO!$I16=1,$F16<>0),IF(COUNTRY_INFO!N16>=(COUNTRY_INFO!F16+COUNTRY_INFO!G16),COUNTRY_INFO!F16+COUNTRY_INFO!G16,COUNTRY_INFO!$N16), 0))","v":0},null,0,0,0,0,0,null,0,0]
[{"$f":"IF(INTRO!$E$39=\"Non endémique\",\" \",IF(COUNTRY_INFO!A17=0,\" \",COUNTRY_INFO!A17))","v":"GUINEE EQUATORIALE"},{"$f":"IF(INTRO!$E$39=\"Non endémique\",\" \",IF(COUNTRY_INFO!B17=0,\" \",COUNTRY_INFO!B17))","v":"Kientem"},{"$f":"IF(INTRO!$E$39=\"Non endémique\",\" \",IF(COUNTRY_INFO!C17=0,\" \",COUNTRY_INFO!C17))","v":"Ebebiyin"},{"$f":"IF(INTRO!$E$39=\"Non endémique\",0,IF(INTRO!$E$39=\"Endémique mais pas de CP\",IF(COUNTRY_INFO!$H17=1,COUNTRY_INFO!F17+COUNTRY_INFO!G17,0),IF(COUNTRY_INFO!$H17=1,COUNTRY_INFO!F17+COUNTRY_INFO!G17,IF(COUNTRY_INFO!$I17=1,IF(COUNTRY_INFO!N17>=(COUNTRY_INFO!F17+COUNTRY_INFO!G17),COUNTRY_INFO!F17+COUNTRY_INFO!G17,COUNTRY_INFO!$N17),0))))","v":111417},{"$f":"IF(AND(INTRO!$E$39=\"Non endémique\",INTRO!$E$37=\"Non endémique\"),\"Non requis\",IF(INTRO!$E$39=\"Non endémique\",\"Traiter avec DEC\",COUNTRY_INFO!Q17))","v":1},{"$f":"IF(INTRO!$E$39<>\"Non endémique\",COUNTRY_INFO!R17,\"Non requis\")","v":0},{"$f":"IF(COUNTRY_INFO!H17=1, IF($E17=1,IF(ALB_MBD!$J17<>\" \",COUNTRY_INFO!F17+COUNTRY_INFO!G17-ALB_MBD!$J17,COUNTRY_INFO!F17+COUNTRY_INFO!G17), 0),0)","v":0},{"$f":"IF(INTRO!$E$39<>\"Endémique\",0, IF(AND(COUNTRY_INFO!$I17=1,$F17<>0),IF(COUNTRY_INFO!N17>=(COUNTRY_INFO!F17+COUNTRY_INFO!G17),COUNTRY_INFO!F17+COUNTRY_INFO!G17,COUNTRY_INFO!$N17), 0))","v":0},null,0,0,0,0,0,null,0,0]
[{"$f":"IF(INTRO!$E$39=\"Non endémique\",\" \",IF(COUNTRY_INFO!A18=0,\" \",COUNTRY_INFO!A18))","v":"GUINEE EQUATORIALE"},{"$f":"IF(INTRO!$E$39=\"Non endémique\",\" \",IF(COUNTRY_INFO!B18=0,\" \",COUNTRY_INFO!B18))","v":"Kientem"},{"$f":"IF(INTRO!$E$39=\"Non endémique\",\" \",IF(COUNTRY_INFO!C18=0,\" \",COUNTRY_INFO!C18))","v":"Micomiseng"},{"$f":"IF(INTRO!$E$39=\"Non endémique\",0,IF(INTRO!$E$39=\"Endémique mais pas de CP\",IF(COUNTRY_INFO!$H18=1,COUNTRY_INFO!F18+COUNTRY_INFO!G18,0),IF(COUNTRY_INFO!$H18=1,COUNTRY_INFO!F18+COUNTRY_INFO!G18,IF(COUNTRY_INFO!$I18=1,IF(COUNTRY_INFO!N18>=(COUNTRY_INFO!F18+COUNTRY_INFO!G18),COUNTRY_INFO!F18+COUNTRY_INFO!G18,COUNTRY_INFO!$N18),0))))","v":73255},{"$f":"IF(AND(INTRO!$E$39=\"Non endémique\",INTRO!$E$37=\"Non endémique\"),\"Non requis\",IF(INTRO!$E$39=\"Non endémique\",\"Traiter avec DEC\",COUNTRY_INFO!Q18))","v":1},{"$f":"IF(INTRO!$E$39<>\"Non endémique\",COUNTRY_INFO!R18,\"Non requis\")","v":0},{"$f":"IF(COUNTRY_INFO!H18=1, IF($E18=1,IF(ALB_MBD!$J18<>\" \",COUNTRY_INFO!F18+COUNTRY_INFO!G18-ALB_MBD!$J18,COUNTRY_INFO!F18+COUNTRY_INFO!G18), 0),0)","v":0},{"$f":"IF(INTRO!$E$39<>\"Endémique\",0, IF(AND(COUNTRY_INFO!$I18=1,$F18<>0),IF(COUNTRY_INFO!N18>=(COUNTRY_INFO!F18+COUNTRY_INFO!G18),COUNTRY_INFO!F18+COUNTRY_INFO!G18,COUNTRY_INFO!$N18), 0))","v":0},null,0,0,0,0,0,null,0,0]
[{"$f":"IF(INTRO!$E$39=\"Non endémique\",\" \",IF(COUNTRY_INFO!A19=0,\" \",COUNTRY_INFO!A19))","v":"GUINEE EQUATORIALE"},{"$f":"IF(INTRO!$E$39=\"Non endémique\",\" \",IF(COUNTRY_INFO!B19=0,\" \",COUNTRY_INFO!B19))","v":"Kientem"},{"$f":"IF(INTRO!$E$39=\"Non endémique\",\" \",IF(COUNTRY_INFO!C19=0,\" \",COUNTRY_INFO!C19))","v":"Nsoknsomo"},{"$f":"IF(INTRO!$E$39=\"Non endémique\",0,IF(INTRO!$E$39=\"Endémique mais pas de CP\",IF(COUNTRY_INFO!$H19=1,COUNTRY_INFO!F19+COUNTRY_INFO!G19,0),IF(COUNTRY_INFO!$H19=1,COUNTRY_INFO!F19+COUNTRY_INFO!G19,IF(COUNTRY_INFO!$I19=1,IF(COUNTRY_INFO!N19>=(COUNTRY_INFO!F19+COUNTRY_INFO!G19),COUNTRY_INFO!F19+COUNTRY_INFO!G19,COUNTRY_INFO!$N19),0))))","v":42233},{"$f":"IF(AND(INTRO!$E$39=\"Non endémique\",INTRO!$E$37=\"Non endémique\"),\"Non requis\",IF(INTRO!$E$39=\"Non endémique\",\"Traiter avec DEC\",COUNTRY_INFO!Q19))","v":1},{"$f":"IF(INTRO!$E$39<>\"Non endémique\",COUNTRY_INFO!R19,\"Non requis\")","v":0},{"$f":"IF(COUNTRY_INFO!H19=1, IF($E19=1,IF(ALB_MBD!$J19<>\" \",COUNTRY_INFO!F19+COUNTRY_INFO!G19-ALB_MBD!$J19,COUNTRY_INFO!F19+COUNTRY_INFO!G19), 0),0)","v":0},{"$f":"IF(INTRO!$E$39<>\"Endémique\",0, IF(AND(COUNTRY_INFO!$I19=1,$F19<>0),IF(COUNTRY_INFO!N19>=(COUNTRY_INFO!F19+COUNTRY_INFO!G19),COUNTRY_INFO!F19+COUNTRY_INFO!G19,COUNTRY_INFO!$N19), 0))","v":0},null,0,0,0,0,0,null,0,0]
[{"$f":"IF(INTRO!$E$39=\"Non endémique\",\" \",IF(COUNTRY_INFO!A20=0,\" \",COUNTRY_INFO!A20))","v":"GUINEE EQUATORIALE"},{"$f":"IF(INTRO!$E$39=\"Non endémique\",\" \",IF(COUNTRY_INFO!B20=0,\" \",COUNTRY_INFO!B20))","v":"Litoral"},{"$f":"IF(INTRO!$E$39=\"Non endémique\",\" \",IF(COUNTRY_INFO!C20=0,\" \",COUNTRY_INFO!C20))","v":"Bata"},{"$f":"IF(INTRO!$E$39=\"Non endémique\",0,IF(INTRO!$E$39=\"Endémique mais pas de CP\",IF(COUNTRY_INFO!$H20=1,COUNTRY_INFO!F20+COUNTRY_INFO!G20,0),IF(COUNTRY_INFO!$H20=1,COUNTRY_INFO!F20+COUNTRY_INFO!G20,IF(COUNTRY_INFO!$I20=1,IF(COUNTRY_INFO!N20>=(COUNTRY_INFO!F20+COUNTRY_INFO!G20),COUNTRY_INFO!F20+COUNTRY_INFO!G20,COUNTRY_INFO!$N20),0))))","v":174635},{"$f":"IF(AND(INTRO!$E$39=\"Non endémique\",INTRO!$E$37=\"Non endémique\"),\"Non requis\",IF(INTRO!$E$39=\"Non endémique\",\"Traiter avec DEC\",COUNTRY_INFO!Q20))","v":1},{"$f":"IF(INTRO!$E$39<>\"Non endémique\",COUNTRY_INFO!R20,\"Non requis\")","v":0},{"$f":"IF(COUNTRY_INFO!H20=1, IF($E20=1,IF(ALB_MBD!$J20<>\" \",COUNTRY_INFO!F20+COUNTRY_INFO!G20-ALB_MBD!$J20,COUNTRY_INFO!F20+COUNTRY_INFO!G20), 0),0)","v":0},{"$f":"IF(INTRO!$E$39<>\"Endémique\",0, IF(AND(COUNTRY_INFO!$I20=1,$F20<>0),IF(COUNTRY_INFO!N20>=(COUNTRY_INFO!F20+COUNTRY_INFO!G20),COUNTRY_INFO!F20+COUNTRY_INFO!G20,COUNTRY_INFO!$N20), 0))","v":0},null,0,0,0,0,0,null,0,0]
[{"$f":"IF(INTRO!$E$39=\"Non endémique\",\" \",IF(COUNTRY_INFO!A21=0,\" \",COUNTRY_INFO!A21))","v":"GUINEE EQUATORIALE"},{"$f":"IF(INTRO!$E$39=\"Non endémique\",\" \",IF(COUNTRY_INFO!B21=0,\" \",COUNTRY_INFO!B21))","v":"Litoral"},{"$f":"IF(INTRO!$E$39=\"Non endémique\",\" \",IF(COUNTRY_INFO!C21=0,\" \",COUNTRY_INFO!C21))","v":"Kogo"},{"$f":"IF(INTRO!$E$39=\"Non endémique\",0,IF(INTRO!$E$39=\"Endémique mais pas de CP\",IF(COUNTRY_INFO!$H21=1,COUNTRY_INFO!F21+COUNTRY_INFO!G21,0),IF(COUNTRY_INFO!$H21=1,COUNTRY_INFO!F21+COUNTRY_INFO!G21,IF(COUNTRY_INFO!$I21=1,IF(COUNTRY_INFO!N21>=(COUNTRY_INFO!F21+COUNTRY_INFO!G21),COUNTRY_INFO!F21+COUNTRY_INFO!G21,COUNTRY_INFO!$N21),0))))","v":35724},{"$f":"IF(AND(INTRO!$E$39=\"Non endémique\",INTRO!$E$37=\"Non endémique\"),\"Non requis\",IF(INTRO!$E$39=\"Non endémique\",\"Traiter avec DEC\",COUNTRY_INFO!Q21))","v":1},{"$f":"IF(INTRO!$E$39<>\"Non endémique\",COUNTRY_INFO!R21,\"Non requis\")","v":0},{"$f":"IF(COUNTRY_INFO!H21=1, IF($E21=1,IF(ALB_MBD!$J21<>\" \",COUNTRY_INFO!F21+COUNTRY_INFO!G21-ALB_MBD!$J21,COUNTRY_INFO!F21+COUNTRY_INFO!G21), 0),0)","v":0},{"$f":"IF(INTRO!$E$39<>\"Endémique\",0, IF(AND(COUNTRY_INFO!$I21=1,$F21<>0),IF(COUNTRY_INFO!N21>=(COUNTRY_INFO!F21+COUNTRY_INFO!G21),COUNTRY_INFO!F21+COUNTRY_INFO!G21,COUNTRY_INFO!$N21), 0))","v":0},null,0,0,0,0,0,null,0,0]
[{"$f":"IF(INTRO!$E$39=\"Non endémique\",\" \",IF(COUNTRY_INFO!A22=0,\" \",COUNTRY_INFO!A22))","v":"GUINEE EQUATORIALE"},{"$f":"IF(INTRO!$E$39=\"Non endémique\",\" \",IF(COUNTRY_INFO!B22=0,\" \",COUNTRY_INFO!B22))","v":"Litoral"},{"$f":"IF(INTRO!$E$39=\"Non endémique\",\" \",IF(COUNTRY_INFO!C22=0,\" \",COUNTRY_INFO!C22))","v":"Mbini"},{"$f":"IF(INTRO!$E$39=\"Non endémique\",0,IF(INTRO!$E$39=\"Endémique mais pas de CP\",IF(COUNTRY_INFO!$H22=1,COUNTRY_INFO!F22+COUNTRY_INFO!G22,0),IF(COUNTRY_INFO!$H22=1,COUNTRY_INFO!F22+COUNTRY_INFO!G22,IF(COUNTRY_INFO!$I22=1,IF(COUNTRY_INFO!N22>=(COUNTRY_INFO!F22+COUNTRY_INFO!G22),COUNTRY_INFO!F22+COUNTRY_INFO!G22,COUNTRY_INFO!$N22),0))))","v":34322},{"$f":"IF(AND(INTRO!$E$39=\"Non endémique\",INTRO!$E$37=\"Non endémique\"),\"Non requis\",IF(INTRO!$E$39=\"Non endémique\",\"Traiter avec DEC\",COUNTRY_INFO!Q22))","v":1},{"$f":"IF(INTRO!$E$39<>\"Non endémique\",COUNTRY_INFO!R22,\"Non requis\")","v":0},{"$f":"IF(COUNTRY_INFO!H22=1, IF($E22=1,IF(ALB_MBD!$J22<>\" \",COUNTRY_INFO!F22+COUNTRY_INFO!G22-ALB_MBD!$J22,COUNTRY_INFO!F22+COUNTRY_INFO!G22), 0),0)","v":0},{"$f":"IF(INTRO!$E$39<>\"Endémique\",0, IF(AND(COUNTRY_INFO!$I22=1,$F22<>0),IF(COUNTRY_INFO!N22>=(COUNTRY_INFO!F22+COUNTRY_INFO!G22),COUNTRY_INFO!F22+COUNTRY_INFO!G22,COUNTRY_INFO!$N22), 0))","v":0},null,0,0,0,0,0,null,0,0]
[{"$f":"IF(INTRO!$E$39=\"Non endémique\",\" \",IF(COUNTRY_INFO!A23=0,\" \",COUNTRY_INFO!A23))","v":"GUINEE EQUATORIALE"},{"$f":"IF(INTRO!$E$39=\"Non endémique\",\" \",IF(COUNTRY_INFO!B23=0,\" \",COUNTRY_INFO!B23))","v":"Welenzas"},{"$f":"IF(INTRO!$E$39=\"Non endémique\",\" \",IF(COUNTRY_INFO!C23=0,\" \",COUNTRY_INFO!C23))","v":"Akonibe"},{"$f":"IF(INTRO!$E$39=\"Non endémique\",0,IF(INTRO!$E$39=\"Endémique mais pas de CP\",IF(COUNTRY_INFO!$H23=1,COUNTRY_INFO!F23+COUNTRY_INFO!G23,0),IF(COUNTRY_INFO!$H23=1,COUNTRY_INFO!F23+COUNTRY_INFO!G23,IF(COUNTRY_INFO!$I23=1,IF(COUNTRY_INFO!N23>=(COUNTRY_INFO!F23+COUNTRY_INFO!G23),COUNTRY_INFO!F23+COUNTRY_INFO!G23,COUNTRY_INFO!$N23),0))))","v":22171},{"$f":"IF(AND(INTRO!$E$39=\"Non endémique\",INTRO!$E$37=\"Non endémique\"),\"Non requis\",IF(INTRO!$E$39=\"Non endémique\",\"Traiter avec DEC\",COUNTRY_INFO!Q23))","v":1},{"$f":"IF(INTRO!$E$39<>\"Non endémique\",COUNTRY_INFO!R23,\"Non requis\")","v":0},{"$f":"IF(COUNTRY_INFO!H23=1, IF($E23=1,IF(ALB_MBD!$J23<>\" \",COUNTRY_INFO!F23+COUNTRY_INFO!G23-ALB_MBD!$J23,COUNTRY_INFO!F23+COUNTRY_INFO!G23), 0),0)","v":0},{"$f":"IF(INTRO!$E$39<>\"Endémique\",0, IF(AND(COUNTRY_INFO!$I23=1,$F23<>0),IF(COUNTRY_INFO!N23>=(COUNTRY_INFO!F23+COUNTRY_INFO!G23),COUNTRY_INFO!F23+COUNTRY_INFO!G23,COUNTRY_INFO!$N23), 0))","v":0},null,0,0,0,0,0,null,0,0]
[{"$f":"IF(INTRO!$E$39=\"Non endémique\",\" \",IF(COUNTRY_INFO!A24=0,\" \",COUNTRY_INFO!A24))","v":"GUINEE EQUATORIALE"},{"$f":"IF(INTRO!$E$39=\"Non endémique\",\" \",IF(COUNTRY_INFO!B24=0,\" \",COUNTRY_INFO!B24))","v":"Welenzas"},{"$f":"IF(INTRO!$E$39=\"Non endémique\",\" \",IF(COUNTRY_INFO!C24=0,\" \",COUNTRY_INFO!C24))","v":"Anisok"},{"$f":"IF(INTRO!$E$39=\"Non endémique\",0,IF(INTRO!$E$39=\"Endémique mais pas de CP\",IF(COUNTRY_INFO!$H24=1,COUNTRY_INFO!F24+COUNTRY_INFO!G24,0),IF(COUNTRY_INFO!$H24=1,COUNTRY_INFO!F24+COUNTRY_INFO!G24,IF(COUNTRY_INFO!$I24=1,IF(COUNTRY_INFO!N24>=(COUNTRY_INFO!F24+COUNTRY_INFO!G24),COUNTRY_INFO!F24+COUNTRY_INFO!G24,COUNTRY_INFO!$N24),0))))","v":55303},{"$f":"IF(AND(INTRO!$E$39=\"Non endémique\",INTRO!$E$37=\"Non endémique\"),\"Non requis\",IF(INTRO!$E$39=\"Non endémique\",\"Traiter avec DEC\",COUNTRY_INFO!Q24))","v":1},{"$f":"IF(INTRO!$E$39<>\"Non endémique\",COUNTRY_INFO!R24,\"Non requis\")","v":0},{"$f":"IF(COUNTRY_INFO!H24=1, IF($E24=1,IF(ALB_MBD!$J24<>\" \",COUNTRY_INFO!F24+COUNTRY_INFO!G24-ALB_MBD!$J24,COUNTRY_INFO!F24+COUNTRY_INFO!G24), 0),0)","v":0},{"$f":"IF(INTRO!$E$39<>\"Endémique\",0, IF(AND(COUNTRY_INFO!$I24=1,$F24<>0),IF(COUNTRY_INFO!N24>=(COUNTRY_INFO!F24+COUNTRY_INFO!G24),COUNTRY_INFO!F24+COUNTRY_INFO!G24,COUNTRY_INFO!$N24), 0))","v":0},null,0,0,0,0,0,null,0,0]
[{"$f":"IF(INTRO!$E$39=\"Non endémique\",\" \",IF(COUNTRY_INFO!A25=0,\" \",COUNTRY_INFO!A25))","v":"GUINEE EQUATORIALE"},{"$f":"IF(INTRO!$E$39=\"Non endémique\",\" \",IF(COUNTRY_INFO!B25=0,\" \",COUNTRY_INFO!B25))","v":"Welenzas"},{"$f":"IF(INTRO!$E$39=\"Non endémique\",\" \",IF(COUNTRY_INFO!C25=0,\" \",COUNTRY_INFO!C25))","v":"Mongomo"},{"$f":"IF(INTRO!$E$39=\"Non endémique\",0,IF(INTRO!$E$39=\"Endémique mais pas de CP\",IF(COUNTRY_INFO!$H25=1,COUNTRY_INFO!F25+COUNTRY_INFO!G25,0),IF(COUNTRY_INFO!$H25=1,COUNTRY_INFO!F25+COUNTRY_INFO!G25,IF(COUNTRY_INFO!$I25=1,IF(COUNTRY_INFO!N25>=(COUNTRY_INFO!F25+COUNTRY_INFO!G25),COUNTRY_INFO!F25+COUNTRY_INFO!G25,COUNTRY_INFO!$N25),0))))","v":58100},{"$f":"IF(AND(INTRO!$E$39=\"Non endémique\",INTRO!$E$37=\"Non endémique\"),\"Non requis\",IF(INTRO!$E$39=\"Non endémique\",\"Traiter avec DEC\",COUNTRY_INFO!Q25))","v":1},{"$f":"IF(INTRO!$E$39<>\"Non endémique\",COUNTRY_INFO!R25,\"Non requis\")","v":0},{"$f":"IF(COUNTRY_INFO!H25=1, IF($E25=1,IF(ALB_MBD!$J25<>\" \",COUNTRY_INFO!F25+COUNTRY_INFO!G25-ALB_MBD!$J25,COUNTRY_INFO!F25+COUNTRY_INFO!G25), 0),0)","v":0},{"$f":"IF(INTRO!$E$39<>\"Endémique\",0, IF(AND(COUNTRY_INFO!$I25=1,$F25<>0),IF(COUNTRY_INFO!N25>=(COUNTRY_INFO!F25+COUNTRY_INFO!G25),COUNTRY_INFO!F25+COUNTRY_INFO!G25,COUNTRY_INFO!$N25), 0))","v":0},null,0,0,0,0,0,null,0,0]
[{"$f":"IF(INTRO!$E$39=\"Non endémique\",\" \",IF(COUNTRY_INFO!A26=0,\" \",COUNTRY_INFO!A26))","v":"GUINEE EQUATORIALE"},{"$f":"IF(INTRO!$E$39=\"Non endémique\",\" \",IF(COUNTRY_INFO!B26=0,\" \",COUNTRY_INFO!B26))","v":"Welenzas"},{"$f":"IF(INTRO!$E$39=\"Non endémique\",\" \",IF(COUNTRY_INFO!C26=0,\" \",COUNTRY_INFO!C26))","v":"Nsork"},{"$f":"IF(INTRO!$E$39=\"Non endémique\",0,IF(INTRO!$E$39=\"Endémique mais pas de CP\",IF(COUNTRY_INFO!$H26=1,COUNTRY_INFO!F26+COUNTRY_INFO!G26,0),IF(COUNTRY_INFO!$H26=1,COUNTRY_INFO!F26+COUNTRY_INFO!G26,IF(COUNTRY_INFO!$I26=1,IF(COUNTRY_INFO!N26>=(COUNTRY_INFO!F26+COUNTRY_INFO!G26),COUNTRY_INFO!F26+COUNTRY_INFO!G26,COUNTRY_INFO!$N26),0))))","v":17179},{"$f":"IF(AND(INTRO!$E$39=\"Non endémique\",INTRO!$E$37=\"Non endémique\"),\"Non requis\",IF(INTRO!$E$39=\"Non endémique\",\"Traiter avec DEC\",COUNTRY_INFO!Q26))","v":1},{"$f":"IF(INTRO!$E$39<>\"Non endémique\",COUNTRY_INFO!R26,\"Non requis\")","v":0},{"$f":"IF(COUNTRY_INFO!H26=1, IF($E26=1,IF(ALB_MBD!$J26<>\" \",COUNTRY_INFO!F26+COUNTRY_INFO!G26-ALB_MBD!$J26,COUNTRY_INFO!F26+COUNTRY_INFO!G26), 0),0)","v":0},{"$f":"IF(INTRO!$E$39<>\"Endémique\",0, IF(AND(COUNTRY_INFO!$I26=1,$F26<>0),IF(COUNTRY_INFO!N26>=(COUNTRY_INFO!F26+COUNTRY_INFO!G26),COUNTRY_INFO!F26+COUNTRY_INFO!G26,COUNTRY_INFO!$N26), 0))","v":0},null,0,0,0,0,0,null,0,0]

{"sheet":"SUMMARY","index":5,"n_rows":93,"n_cols":8,"rows_kept":93,"cut":false,"hidden":false,"merged":[[86,1,86,7],[77,2,77,3],[77,4,77,5],[69,1,69,7],[83,1,83,2],[73,2,73,3],[73,4,73,5],[74,4,74,5],[84,3,84,7],[84,1,84,2],[21,2,24,5],[25,1,25,7],[53,1,53,7],[75,2,75,3],[75,4,75,5],[46,5,46,6],[47,5,47,6],[74,2,74,3],[58,1,58,7],[54,1,54,7],[66,4,66,6],[48,5,48,6],[49,5,49,6],[50,5,50,6],[30,6,30,7],[42,5,42,6],[30,2,30,3],[81,1,81,7],[83,3,83,7],[68,1,68,7],[76,4,76,5],[43,5,43,6],[44,5,44,6],[45,5,45,6],[40,5,40,6],[41,5,41,6],[60,1,60,7],[63,4,63,6],[64,4,64,6],[65,4,65,6],[62,4,62,6],[82,1,82,7],[9,1,10,1],[9,2,9,5],[9,6,9,7],[5,2,5,5],[92,1,92,7],[87,1,87,7],[91,1,91,7],[57,1,57,7],[30,4,30,5],[56,1,56,7],[76,2,76,3],[38,1,38,7],[79,1,79,7],[80,1,80,7],[6,1,6,7],[55,1,55,7],[1,1,1,7],[2,1,2,5],[3,1,3,7],[4,1,4,7],[0,2,0,7]]}
[null,null,"Cette version sera utilisée par les pays endémiques à la Loase"]
[null,"Formulaire de demande commune de médicaments pour CP v.3.1 (L)"]
[]
[null,"Ce formulaire constitue une demande officielle du Gouvernement à l'OMS pour l'approvisionnement des médicaments mentionnés ci-dessus. Ce formulaire peut-être soumis à n'importe quel moment, avant le 15 août de l'année en cours, pour une livraison de médicaments au courant de l'année suivante, mais au moins 6-8 mois avant l’intervention planifiée afin de laisser le temps nécessaire pour réviser et approuver la demande, placer la commande, élaborer les médicaments et les expédier vers les pays."]
[]
[null,"Pays",{"$f":"IF(INTRO!$E$33<>0,INTRO!$E$33,\" \")","v":"GUINEE EQUATORIALE"},null,null,null,"Année",{"$f":"IF(INTRO!$E$35<>0,INTRO!$E$35,\" \")","v":2020}]
[]
[null,"Informations concernant les médicaments CP demandés à l’OMS"]
[]
[null,"Le médicament","Nombre de comprimés",null,null,null,"Nombre total de flacons"]
[null,null,"Requis","En stock","En cours de demande","Demandés","Requis","Demandés"]
[null,"Albendazole pour FL",1596154,0,null,{"$f":"IF(C12>(D12+E12),C12-D12-E12, 0)","v":1596154},{"$f":"IF($C12=0,0,IF($B12=\"Albendazole pour FL\",IF($C12=(ALB_MBD!$U$4+ALB_MBD!$V$4),ALB_MBD!$W$4,ROUNDUP($C12/200,0)),IF($B12=\"Albendazole pour STH (EAS)\",IF($C12=ALB_MBD!$N$4,ALB_MBD!$Z$4,ROUNDUP($C12/200,0)),IF($B12=\"Mebendazole (EAS)\",IF($C12=ALB_MBD!$R$4,ALB_MBD!$AC$4,ROUNDUP($C12/150,0)),IF($B12=\"Praziquantel (EAS)\",IF($C12=PZQ!$O$4,PZQ!$R$4,ROUNDUP($C12/1000,0)),IF($B12=\"Ivermectine\",IF($C12=IVM!$N$4,IVM!$Q$4,$C12/500+0.49),0))))))","v":7989},{"$f":"IF($F12=0,0,IF(OR($B12=\"Albendazole pour FL\",$B12=\"Albendazole pour STH (EAS)\"),$G12-ROUNDUP(($E12+$D12)/200,0),IF($B12=\"Ivermectine\",$G12-ROUNDUP(($E12+$D12)/500,0),IF($B12=\"Mebendazole (EAS)\",$G12-ROUNDUP(($E12+$D12)/150,0),$G12-ROUNDUP(($E12+$D12)/1000,0)))))","v":7989}]
[null,"Albendazole pour STH (EAS)",92750,235668,null,0,{"$f":"IF($C13=0,0,IF($B13=\"Albendazole pour FL\",IF($C13=(ALB_MBD!$U$4+ALB_MBD!$V$4),ALB_MBD!$W$4,ROUNDUP($C13/200,0)),IF($B13=\"Albendazole pour STH (EAS)\",IF($C13=ALB_MBD!$N$4,ALB_MBD!$Z$4,ROUNDUP($C13/200,0)),IF($B13=\"Mebendazole (EAS)\",IF($C13=ALB_MBD!$R$4,ALB_MBD!$AC$4,ROUNDUP($C13/150,0)),IF($B13=\"Praziquantel (EAS)\",IF($C13=PZQ!$O$4,PZQ!$R$4,ROUNDUP($C13/1000,0)),IF($B13=\"Ivermectine\",IF($C13=IVM!$N$4,IVM!$Q$4,$C13/500+0.49),0))))))","v":465},0]
[null,"Praziquantel (EAS)",0,0,null,0,{"$f":"IF($C14=0,0,IF($B14=\"Albendazole pour FL\",IF($C14=(ALB_MBD!$U$4+ALB_MBD!$V$4),ALB_MBD!$W$4,ROUNDUP($C14/200,0)),IF($B14=\"Albendazole pour STH (EAS)\",IF($C14=ALB_MBD!$N$4,ALB_MBD!$Z$4,ROUNDUP($C14/200,0)),IF($B14=\"Mebendazole (EAS)\",IF($C14=ALB_MBD!$R$4,ALB_MBD!$AC$4,ROUNDUP($C14/150,0)),IF($B14=\"Praziquantel (EAS)\",IF($C14=PZQ!$O$4,PZQ!$R$4,ROUNDUP($C14/1000,0)),IF($B14=\"Ivermectine\",IF($C14=IVM!$N$4,IVM!$Q$4,$C14/500+0.49),0))))))","v":0},0]
[null,"Ivermectine",0,0,null,0,{"$f":"IF($C15=0,0,IF($B15=\"Albendazole pour FL\",IF($C15=(ALB_MBD!$U$4+ALB_MBD!$V$4),ALB_MBD!$W$4,ROUNDUP($C15/200,0)),IF($B15=\"Albendazole pour STH (EAS)\",IF($C15=ALB_MBD!$N$4,ALB_MBD!$Z$4,ROUNDUP($C15/200,0)),IF($B15=\"Mebendazole (EAS)\",IF($C15=ALB_MBD!$R$4,ALB_MBD!$AC$4,ROUNDUP($C15/150,0)),IF($B15=\"Praziquantel (EAS)\",IF($C15=PZQ!$O$4,PZQ!$R$4,ROUNDUP($C15/1000,0)),IF($B15=\"Ivermectine\",IF($C15=IVM!$N$4,IVM!$Q$4,$C15/500+0.49),0))))))","v":0},0]
[null,null,0,0,null,0,{"$f":"IF($C16=0,0,IF($B16=\"Albendazole pour FL\",IF($C16=(ALB_MBD!$U$4+ALB_MBD!$V$4),ALB_MBD!$W$4,ROUNDUP($C16/200,0)),IF($B16=\"Albendazole pour STH (EAS)\",IF($C16=ALB_MBD!$N$4,ALB_MBD!$Z$4,ROUNDUP($C16/200,0)),IF($B16=\"Mebendazole (EAS)\",IF($C16=ALB_MBD!$R$4,ALB_MBD!$AC$4,ROUNDUP($C16/150,0)),IF($B16=\"Praziquantel (EAS)\",IF($C16=PZQ!$O$4,PZQ!$R$4,ROUNDUP($C16/1000,0)),IF($B16=\"Ivermectine\",IF($C16=IVM!$N$4,IVM!$Q$4,$C16/500+0.49),0))))))","v":0},0]
[null,null,0,0,null,0,{"$f":"IF($C17=0,0,IF($B17=\"Albendazole pour FL\",IF($C17=(ALB_MBD!$U$4+ALB_MBD!$V$4),ALB_MBD!$W$4,ROUNDUP($C17/200,0)),IF($B17=\"Albendazole pour STH (EAS)\",IF($C17=ALB_MBD!$N$4,ALB_MBD!$Z$4,ROUNDUP($C17/200,0)),IF($B17=\"Mebendazole (EAS)\",IF($C17=ALB_MBD!$R$4,ALB_MBD!$AC$4,ROUNDUP($C17/150,0)),IF($B17=\"Praziquantel (EAS)\",IF($C17=PZQ!$O$4,PZQ!$R$4,ROUNDUP($C17/1000,0)),IF($B17=\"Ivermectine\",IF($C17=IVM!$N$4,IVM!$Q$4,$C17/500+0.49),0))))))","v":0},0]
[]
[null,"Nombre de personnes devant être traitées avec le médicament donné"]
[]
[null,"Veuillez sélectionner la maladie",null,null,null,null,"1er tour","2ème tour"]
[null,"Filariose lymphatique","Ces chiffres sont estimés uniquement pour les goupes d'âge ciblés pour le traitement avec les médicaments donnés, dans les régions où le traitement de maladies spécifiques est requis",null,null,null,806214," "]
[null,"Onchocercose",null,null,null,null,0,0]
[null,"Schistosomiase",null,null,null,null,0," "]
[null,"Géohelminthiases",null,null,null,null,49356,256076]
[]
[]
[]
[null,"Informations sur les interventions CP planifiées "]
[]
[null,"Le médicament","Veuillez sélectionner une date (mois et année) pour la 1ère tournée de CP",null,"Veuillez sélectionner une date (mois et année) pour la 2ème tournée de CP",null,"Date à laquelle les médicaments devraient atteindre l’entrepôt national"]
[null,"Albendazole pour FL","Mai",2020,"Novembre",2020,"Mars",2020]
[null,"Albendazole pour STH (EAS)","Mai",2020,"Novembre",2020,"Mars",2020]
[null,"Praziquantel (EAS)"]
[null,"Ivermectine","Mai",2020,"Novembre",2020,"Mars",2020]
[]
[]
[]
[null,"Informations sur les médicaments de chimiothérapie préventive pour le traitement de populations non ciblées par la donation en cours via l’OMS"]
[]
[null,"Le médicament","Groupe d'âge","# de personnes","# de comprimés","Source",null,"Statut"]
[]
[]
[]
[]
[]
[]
[]
[]
[]
[]
[]
[null,"Récapitulatif - Checklist"]
[null,"Submission"]
[null,"Que faut-il soumettre ?"]
[null,"L'approvisionnement des médicaments demandés doit être basé sur des données épidémiologiques à jour, des plans d'utilisation des médicaments spécifiques et sur la capacité de mise en oeuvre. La liste suivante permet d'assurer que tous les formulaires et toutes les informations sont fournis à l'OMS (en format électronique)."]
[null,"Formulaire de demande commune de médicaments pour chimioprévention"]
[null,"Formulaire de rapport commun"]
[null,"Déclaration des données épidémiologiques pour la CP"]
[]
[null,"Disponibilité de financement pour la mise en oeuvre de tournées pendant l’année pour laquelle les medicaments ont été demandés"]
[]
[null,"Maladies ciblées pour la mise en oeuvre","# de traitements ","Financement assuré pour","Origine",null,null,"Montant"]
[null,{"$f":"B22","v":"Filariose lymphatique"},{"$f":"SUM(G22:H22)","v":806214}]
[null,{"$f":"B23","v":"Onchocercose"},{"$f":"SUM(G23:H23)","v":0}]
[null,{"$f":"B24","v":"Schistosomiase"},{"$f":"SUM(G24:H24)","v":0}]
[null,{"$f":"B25","v":"Géohelminthiases"},{"$f":"SUM(G25:H25)","v":305432}]
[]
[null,"Qui doit remplir le formulaire ?"]
[null,"Le Coordonnateur national MTN doit compiler toutes les informations nécessaires pour compléter le formulaire de demande.  En l'absence d'un coordonnateur, les gestionnaires de programmes spécifiques devraient coordonner leurs sections respectives. Une fois finalisée, chaque demande individuelle doit être approuvée par le Ministère de la Santé."]
[]
[null,"Informations concernant la (les) personne(s) ayant rempli le formulaire"]
[]
[null,"Titre/fonction ","Nom",null,"Téléphone",null,"Email","Date"]
[null,"Coordonnateur MTN/CP","Rufino Nguema",null,"+240 222 270 124",null,"rufonguema@yahoo.es","18/7/2019"]
[]
[]
[]
[]
[null,"L’OMS recommende que tous les effets secondaires graves suspectés d’être associés à l’ingestion de médicaments de CP soient rapportés en suivant les lignes directrices nationales de pharmacovigilance.  En l’absence d’un système de pharmacovigilance national, contactez le département de Contrôle des Maladies Tropicales Négligées pour être conseillé."]
[null,"L’OMS s’est engagée à rendre possible la donation de médicaments en fournissant gratuitement: a) albendazole, mebendazole et praziquantel à l’entrepôt national du Ministère de la Santé et b) diethylcarbamazine au port d’entrée du pays receveur."]
[null,"L’institution soumettant la présente requête est responsable de: a) l’organisation du déchargement des médicaments du camion, du stockage dans l’entrepôt national et de l’expédition vers les centres où aura lieu la distribution finale; b) de l’enregistrement, si nécessaire, des médicaments donnés, auprès des autorités nationales en charge; et de c) de l’information de n’importe quels changements ayant trait à leurs campagnes de traitement (par exemple le report d’une date planifiée de distribution en masse de médicaments, le remplacement d’un coordonateur MTN, etc.)."]
[null,"         J’ai pris connaissance et accepté la politique de la communication de données de l’OMS"]
[null,"Nom et signature \ndu Coordonnateur MTN ou du \nReprésentant du Ministère de la Santé"]
[null,"Date"]
[]
[null,"Si vous avez plus d'un destinataire final pour les médicaments de chimioprévention demandés, veuillez compléter les informations de la rubrique \"Informations concernant l'envoi et le destinataire\" dans la feuille de travail SHIPMENT."]
[null,"Veuillez envoyer le rapport national (signé et sous format électronique) au représentant de I'OMS du pays en mettant en copie:"]
[null,"Siège de l'OMS ","PC_JointForms@who.int"]
[null,"Bureau régional de l'OMS","Conseiller régional MTN"]
[null,"Mectizan donation programme","Dr Yao Sodahlon, email: ysodahlon@taskforce.org"]
[]
[null,"Veuillez noter que votre demande sera examinée par un panel d'experts indépendants (Comité ad hoc d’évaluation conjointe). Les informations contenues dans ce formulaire, le rapport commun d'activités (ou rapport national d'activités) et le plan d'action annuel sont essentiels à l'OMS pour assurer un usage optimal des médicaments. Dans le cadre de ses activités courantes de suivi et d'évaluation, et afin d'honorer ses obligations contractuelles envers les bailleurs de fonds  et autres partenaires, l'OMS et ses agents affiliés se réservent le droit d'inspecter, périodiquement, les stocks de médicaments au niveau national. "]

{"sheet":"SHIPMENT","index":6,"n_rows":46,"n_cols":8,"rows_kept":46,"cut":false,"hidden":false,"merged":[[0,2,0,7],[35,1,35,7],[47,1,57,7],[45,1,45,7],[30,2,30,4],[30,5,30,7],[31,2,31,4],[31,5,31,7],[32,2,32,4],[32,5,32,7],[36,1,36,6],[37,1,37,5],[39,1,39,7],[40,1,40,6],[38,1,38,6],[41,1,41,6],[42,1,42,7],[28,2,28,4],[28,5,28,7],[29,2,29,4],[29,5,29,7],[27,2,27,4],[27,5,27,7],[13,5,13,7],[17,5,17,7],[26,2,26,4],[20,2,20,4],[20,5,20,7],[26,5,26,7],[21,5,21,7],[18,5,18,7],[19,2,19,4],[19,5,19,7],[23,2,23,4],[21,2,21,4],[17,2,17,4],[25,2,25,4],[25,5,25,7],[18,2,18,4],[1,1,1,7],[2,1,2,5],[12,2,12,4],[15,1,15,7],[14,2,14,4],[14,5,14,7],[12,5,12,7],[13,2,13,4],[11,5,11,7],[11,2,11,4],[6,1,6,7],[9,2,9,4],[7,2,7,4],[7,5,7,7],[8,2,8,4],[9,5,9,7],[10,2,10,4],[10,5,10,7],[3,2,3,5],[4,1,4,7],[8,5,8,7],[23,5,23,7],[16,2,16,4],[16,5,16,7],[22,2,22,4],[22,5,22,7]]}
[null,null,"Cette version sera utilisée par les pays endémiques à la Loase"]
[null,"Formulaire de demande commune de médicaments pour CP v.3.1 (L)"]
[]
[null,"Pays",{"$f":"IF(INTRO!$E$33<>0,INTRO!$E$33,\" \")","v":"GUINEE EQUATORIALE"},null,null,null,"Année",{"$f":"IF(INTRO!$E$35<>0,INTRO!$E$35,\" \")","v":2020}]
[]
[null,"Informations sur l'envoi et le destinataire "]
[]
[null,null,"Destinataire",null,null,"Destinataire final\nsi différent du destinaire précédent"]
[null,"Nom","Ekiri Nguie, Dr Ana Bella",null,null,"Rufino NGUEMA ANDEME"]
[null,"Département/Unité",null,null,null,"Ministerio de Sanidad y Bienestar Social"]
[null,"Organisation","Orgnization Mondiale de la Santé",null,null,"Guvernamental"]
[null,"Téléphone","+240 222 273908",null,null,"240 222 270124"]
[null,"Fax"]
[null,"E-mail","afwcogq@who.int",null,null,"rufonguema@yahoo.es"]
[null,"Adresse postale"]
[]
[null,null,"Destinataire",null,null,"Destinataire final\nsi différent du destinaire précédent"]
[null,"Nom"]
[null,"Département/Unité"]
[null,"Organisation"]
[null,"Téléphone"]
[null,"Fax"]
[null,"E-mail"]
[null,"Adresse postale"]
[]
[null,null,"Destinataire",null,null,"Destinataire final\nsi différent du destinaire précédent"]
[null,"Nom"]
[null,"Département/Unité"]
[null,"Organisation"]
[null,"Téléphone"]
[null,"Fax"]
[null,"E-mail"]
[null,"Adresse postale"]
[]
[null,"Information concernant les obligations légales d’importation"]
[]
[null,"Est le permis d'importation nécessaire?"]
[null,"Combien de temps cela prend-il pour obtenir le permis d’importation?"]
[null,"Avez vous besoin que certains documents soient remis en même temps que la demande de permis d’importation?"]
[null,"Si oui, merci de bien vouloir spécifier lesquels ici"]
[null,"Est-ce que le destinataire doit procéder au dédouanement avant que l’expédition puisse avoir lieu?"]
[null,"Y a-t-il des informations supplémentaires qui pourraient être utiles afin d’assurer un dédouanement et une livraison rapide des médicaments dans votre pays?"]
[null,"Si oui, merci de bien vouloir spécifier lesquels ici"]
[]
[]
[null,"Remarques supplémentaires éventuelles liées à cette requête"]

{"sheet":"DATA_POLICY - ES","index":7,"n_rows":37,"n_cols":8,"rows_kept":37,"cut":false,"hidden":false,"merged":[[13,1,16,7],[0,1,0,5],[1,1,1,7],[3,3,3,5],[6,1,6,7],[8,1,12,7],[17,1,20,7],[21,1,24,7],[25,2,35,7],[36,1,44,7],[53,1,53,2]]}
[]
[null,"Solicitud conjunta de medicamentos seleccionados para QP v.3.1"]
[]
[null,"País ",null,{"$f":"IF([1]INTRO!$E$33<>0,[1]INTRO!$E$33,\" \")","v":" "},null,null,"Año",{"$f":"IF([1]INTRO!$E$35<>0,[1]INTRO!$E$35,\" \")","v":" "}]
[]
[]
[null,"Términos de la OMS sobre la política para compartir datos"]
[]
[null,"Los datos constituyen los cimientos de todas las medidas racionales de salud pública y los beneficios de compartirlos están ampliamente reconocidos, en particular en el ámbito de la ciencia y la salud pública. Siempre que sea posible, la OMS desea promover el intercambio de datos sanitarios, en particular los epidemiológicos y de vigilancia, pero sin limitarse a ellos. "]
[]
[]
[]
[]
[null,{"$f":"\"Al respecto, y sin perjuicio de lo prescrito en los documentos jurídicamente vinculantes sobre la compartición y publicación de información, al ofrecer datos a la OMS el Ministerio de Salud de  \" & D4 & \":\"","v":"Al respecto, y sin perjuicio de lo prescrito en los documentos jurídicamente vinculantes sobre la compartición y publicación de información, al ofrecer datos a la OMS el Ministerio de Salud de   :"}]
[]
[]
[]
[null,"Confirma que todos los datos que se suministran a la OMS se han recopilado con arreglo a la legislación nacional aplicable, en particular las leyes de protección de datos destinadas a proteger el anonimato de personas identificables;"]
[]
[]
[]
[null,{"$f":"\"Conviene en que la OMS tendrá derecho, a reserva en todo momento de medidas para garantizar el uso ético y protegido de los datos, y a reserva en todo momento del reconocimiento apropiado de \"&D4&\":\"","v":"Conviene en que la OMS tendrá derecho, a reserva en todo momento de medidas para garantizar el uso ético y protegido de los datos, y a reserva en todo momento del reconocimiento apropiado de  :"}]
[]
[]
[]
[null,null,"a publicar los datos, desprovistos de todo elemento identificativo personal (denominados en adelante «los datos»), y a ponerlos a disposición de toda parte interesada previa petición (en la medida en que la OMS no los haya publicado, o no los haya publicado todavía) de tal modo que pueda darse a los datos un uso no comercial y sin ánimo de lucro con fines de salud pública (siempre que la OMS conserve el control de la publicación de los datos);\na utilizar, recopilar, combinar, evaluar y analizar los datos y a publicar y difundir los resultados de dicho análisis junto con la labor de la OMS y de conformidad con las políticas y prácticas de la Organización."]
[]
[]
[]
[]
[]
[]
[]
[]
[]
[]
[null,{"$f":"CONCATENATE(\"Excepto en los casos en que la compartición y la publicación de los datos se prescriban en los instrumentos jurídicamente vinculantes (el RSI, el Reglamento de Nomenclatura de la OMS de 1967, etc.), el Ministerio de Salud de \", D4,\" podrá, respecto de determinados datos, manifestar que no acepta lo anterior (en su totalidad o en parte)\" & \" notificando a la OMS por escrito en la dirección que figura a continuación, a condición de que en dicha notificación se indiquen claramente los datos a los que se hace referencia, \" & \"se señalen claramente las disposiciones anteriores que no se aceptan y se expongan las razones. \")","v":"Excepto en los casos en que la compartición y la publicación de los datos se prescriban en los instrumentos jurídicamente vinculantes (el RSI, el Reglamento de Nomenclatura de la OMS de 1967, etc.), el Ministerio de Salud de   podrá, respecto de determinados datos, manifestar que no acepta lo anterior (en su totalidad o en parte) notificando a la OMS por escrito en la dirección que figura a continuación, a condición de que en dicha notificación se indiquen claramente los datos a los que se hace referencia, se señalen claramente las disposiciones anteriores que no se aceptan y se expongan las razones. "}]

{"sheet":"DATA_POLICY","index":8,"n_rows":39,"n_cols":8,"rows_kept":39,"cut":false,"hidden":false,"merged":[[55,1,55,2],[0,1,0,5],[1,1,1,7],[3,3,3,5],[6,1,6,7],[8,1,12,7],[13,1,16,7],[17,1,21,7],[22,1,25,7],[26,2,36,7],[38,1,45,7]]}
[]
[null,"Formulaire de demande commune de médicaments pour CP v.3.1"]
[]
[null,"Pays",null,{"$f":"IF(INTRO!$E$33<>0,INTRO!$E$33,\" \")","v":"GUINEE EQUATORIALE"},null,null,"Année",{"$f":"IF(INTRO!$E$35<>0,INTRO!$E$35,\" \")","v":2020}]
[]
[]
[null,"Déclaration de principe sur la communication de données par l’OMS"]
[]
[null,"Les données sont le fondement de toutes les mesures rationnelles de santé publique et les avantages de la communication de données, y compris pour la science et la santé publique, sont largement reconnus. L’OMS souhaite promouvoir autant que possible la communication de données sanitaires, y compris, mais pas uniquement, de données épidémiologiques et de surveillance."]
[]
[]
[]
[]
[null,{"$f":"\"À cet égard, et sans préjudice des instruments juridiquement contraignants régissant la communication et la publication d’informations, le Ministère de la santé de \" & D4 & \", en fournissant des données à l’OMS :\"","v":"À cet égard, et sans préjudice des instruments juridiquement contraignants régissant la communication et la publication d’informations, le Ministère de la santé de GUINEE EQUATORIALE, en fournissant des données à l’OMS :"}]
[]
[]
[]
[null,"confirme que toutes les données à fournir à l’OMS, ont été collectées conformément à la législation nationale applicable, y compris aux lois de protection des données visant à préserver l’anonymat des personnes identifiables ;"]
[]
[]
[]
[]
[null,{"$f":"\"convient que l’OMS aura le droit, toujours sous réserve des mesures visant à garantir l’utilisation éthique et sécurisée des données et toujours sous réserve d’une reconnaissance appropriée de la part de \"&D4&\":\"","v":"convient que l’OMS aura le droit, toujours sous réserve des mesures visant à garantir l’utilisation éthique et sécurisée des données et toujours sous réserve d’une reconnaissance appropriée de la part de GUINEE EQUATORIALE:"}]
[]
[]
[]
[null,null,"de publier les données, dépourvues de tout élément d’identification personnelle (ci-après dénommées « les données ») et de les mettre à la disposition de toute partie intéressée, sur demande (dans la mesure où elles n’ont pas, ou pas encore, été publiées par l’OMS), selon des modalités autorisant leur utilisation non commerciale et sans but lucratif à des fins de santé publique (pour autant que l’OMS garde la maîtrise de la publication des données) ;\nd’utiliser, de compiler, d’agréger, d’évaluer et d’analyser les données et de publier et de diffuser les résultats obtenus grâce à ces données en rapport avec des travaux de l’OMS et conformément aux politiques et pratiques de l’Organisation."]
[]
[]
[]
[]
[]
[]
[]
[]
[]
[]
[]
[null,{"$f":"CONCATENATE(\"Sauf lorsque des instruments juridiquement contraignants (RSI, Règlement de Nomenclature de l’OMS, de 1967, etc.) disposent que les données doivent être communiquées et publiées, le Ministère de la santé de \", D4,\" peut, pour certaines données, décider de ne pas appliquer (tout ou partie des) (les) dispositions qui précèdent,\" & \" en informant l’OMS par écrit à l’adresse suivante, à condition que cette notification précise clairement les données, \" & \"dont il s’agit et indique clairement lesquelles des dispositions qui précèdent ne seront pas appliquées, et pour quels motifs.\")","v":"Sauf lorsque des instruments juridiquement contraignants (RSI, Règlement de Nomenclature de l’OMS, de 1967, etc.) disposent que les données doivent être communiquées et publiées, le Ministère de la santé de GUINEE EQUATORIALE peut, pour certaines données, décider de ne pas appliquer (tout ou partie des) (les) dispositions qui précèdent, en informant l’OMS par écrit à l’adresse suivante, à condition que cette notification précise clairement les données, dont il s’agit et indique clairement lesquelles des dispositions qui précèdent ne seront pas appliquées, et pour quels motifs."}]